Workbook

Sheet Acceuil
E7: COMITE INTERMINISTERIEL DE PILOTAGE DE LA POLITIQUE NATIONALE DE DECENTRALISATION ET DE DECONCENTRATION (CIP-PONADEC)
E8: SECRETARIAT PERMANENT
E10: Calcul de l'Indice de bonne Gouvernance Locale (IGL)
F12: Département | G12: LITTORAL | I12: Commune | J12: COTONOU | O12: Année : | P12: 2019
E17: Informations à saisir par catégorie
G19: Budget | L19: Cadres de Concertation
G20: Conseil Communal | L20: Tutelle
G21: Conseil d'Arrondissement | L21: Marchés
G22: Conseil de Village | L22: Services délégués
G23: Commissions Permanentes | L23: Autres données

Sheet Budget
A1: Retour à l'accueil
A2: Prévision | D2: Réalisation | K2: Autres données financieres
A3: Montant du budget | B3: Recette fiscales | C3: PAI | D3: Dépenses d'investissement | G3: Dépenses totales de fonctionnement | H3: Dépenses d'entretien des équipements et ouvrages | I3: Recettes fiscales | J3: PAI | K3: Montant des ressources propres de l'année 2018 | L3: Montant des ressources propres de l'année 2019 | M3: Montant des cotisations versées à échéance (Intercommunalité et Association de communes) | N3: Montant des cotisations dues à échéance (Intercommunalité et Association de communes)
D4: Ressources propres (Auto financement) | E4: Investissement provenant de la coopération décentralisée | F4: Autres ressources
A5: 25919045527 | B5: 10868400000 | C5: 10549668054 | D5: 3454094982 | E5: 0 | F5: 544678498 | G5: 10028682127 | H5: 322069313 | I5: 11275080002 | J5: 5321560706 | K5: 13526674006 | L5: 12498174371 | M5: 20345699 | N5: 32000000

Sheet CC
A1: Retour à l'accueil
A2: Tenue des Sessions ordinaires
A3: Nombre de réunions de municipalité tenues | D3: 7
A4: Nombre d'élus du Conseil Communal | D4: 49
A5: Sessions | B5: Nombre d'élus présents | C5: Date début session | D5: Date fin session | E5: Date affichage relevé session | F5: Production du rapport d'activités du Maire | H5: dif | I5: delai
A6: Session N°1 | B6: 45 | C6: 2019-03-26 | D6: 2019-03-28 | E6: 2019-03-28 | F6: OUI | H6: =IF(OR(D6="",E6=""),-1,DATEDIF(D6,E6,"d")) -> 0 | I6: =IF(OR(H6<0,H6>8),0,1) -> 1
A7: Session N°2 | B7: 43 | C7: 2019-06-26 | D7: 2019-06-28 | E7: 2019-06-28 | F7: OUI | H7: =IF(OR(D7="",E7=""),-1,DATEDIF(D7,E7,"d")) -> 0 | I7: =IF(OR(H7<0,H7>8),0,1) -> 1
A8: Session N°3 | B8: 40 | C8: 2019-09-25 | D8: 2019-09-27 | E8: 2019-09-27 | F8: OUI | H8: =IF(OR(D8="",E8=""),-1,DATEDIF(D8,E8,"d")) -> 0 | I8: =IF(OR(H8<0,H8>8),0,1) -> 1
A9: Session N°4 | B9: 41 | C9: 2019-11-26 | D9: 2019-11-28 | E9: 2019-11-28 | F9: OUI | H9: =IF(OR(D9="",E9=""),-1,DATEDIF(D9,E9,"d")) -> 0 | I9: =IF(OR(H9<0,H9>8),0,1) -> 1

Sheet CA
A1: Retour à l'accueil
A2: Arrondissements | B2: Nombre de sessions de conseils d’arrondissement tenues
A3: 1ER ARRONDISSEMENT | B3: 16
A4: 2EME ARRONDISSEMENT | B4: 13
A5: 3EME ARRONDISSEMENT | B5: 12
A6: 4EME ARRONDISSEMENT | B6: 11
A7: 5EME ARRONDISSEMENT | B7: 8
A8: 6EME ARRONDISSEMENT | B8: 7
A9: 7EME ARRONDISSEMENT | B9: 13
A10: 8EME ARRONDISSEMENT | B10: 15
A11: 9EME ARRONDISSEMENT | B11: 14
A12: 10EME ARRONDISSEMENT | B12: 11
A13: 11EME ARRONDISSEMENT | B13: 13
A14: 12EME ARRONDISSEMENT | B14: 10
A15: 13EME ARRONDISSEMENT | B15: 15

Sheet CV
A1: Retour à l'accueil
A2: Arrondissements | B2: Villages | C2: Nombre de réunions de conseils de village tenues au cours de l’année | D2: Section Villagoise\urbaine de Gestion Fonctiere (SVGF et SUGF)
D3: Enquetes Publiques Contradictoires (EPC)
D4: Nombre de demandes effectuées | E4: Nombre de demandes réalisées
A5: 1ER ARRONDISSEMENT | B5: AVOTROU AIMONLONFIDE | C5: 4
B6: AVOTROU GBEGO | C6: 5
B7: AVOTROU HOUEZEKOME | C7: 5
B8: DANDJI | C8: 4
B9: DANDJI HOKANME | C9: 4
B10: DONATEN | C10: 5
B11: FINAGNON | C11: 4
B12: N'VENAMEDE | C12: 4
B13: SURU LERE | C13: 3
B14: TANTO | C14: 4
B15: TCHANHOUNKPAME | C15: 3
B16: TOKPLEGBE | C16: 3
B17: YAGBE | C17: 7
A18: 2EME ARRONDISSEMENT | B18: AHOUASSA | C18: 3
B19: DJEDJE-LAYE | C19: 6
B20: GANKPODO | C20: 3
B21: IREDE | C21: 4
B22: KOWEGBO | C22: 4
B23: KPONDEHOU | C23: 0
B24: KPONDEHOU TCHEMEI | C24: 4
B25: LOM-NAVA | C25: 3
B26: MINONTCHOU | C26: 5
B27: SENADE SEKOU | C27: 5
B28: SENANDE | C28: 4
B29: YENAWA | C29: 4
B30: YENAWA DAHO | C30: 5
A31: 3EME ARRONDISSEMENT | B31: ADJEGOUNLE | C31: 5
B32: ADOGLETA | C32: 2
B33: AGBATO | C33: 5
B34: AGBODJEDO | C34: 5
B35: AYELAWADJE | C35: 5
B36: AYELAWADJE AGONGOME | C36: 5
B37: FIFATIN | C37: 5
B38: GBENONKPO | C38: 4
B39: HLACOMEY | C39: 5
B40: KPANKPAN | C40: 5
B41: MIDOMBO | C41: 5
B42: SEGBEYA NORD | C42: 6
B43: SEGBEYA SUD | C43: 5
A44: 4EME ARRONDISSEMENT | B44: ABOKICODJI CENTRE | C44: 5
B45: ABOKICODJI LAGUNE | C45: 5
B46: AKPAKPA DODOME | C46: 4
B47: DEDOKPO | C47: 4
B48: ENAGNON | C48: 4
B49: FIFADJI HOUTO | C49: 5
B50: GBEDJEWIN | C50: 4
B51: MISSESSIN | C51: 3
B52: OHE | C52: 4
B53: SODJEATINME CENTRE | C53: 4
B54: SODJEATINME EST | C54: 4
B55: SODJEATINME OUEST | C55: 4
A56: 5EME ARRONDISSEMENT | B56: AVLEKETE JONQUET | C56: 4
B57: BOCOSSI TOKPA | C57: 4
B58: DOTA | C58: 2
B59: GBEDOKPO | C59: 4
B60: GBETO | C60: 3
B61: GUINKOMEY | C61: 0
B62: MIFONGOU | C62: 3
B63: MISSEBO | C63: 3
B64: MISSITE | C64: 4
B65: NOUVEAU PONT | C65: 3
B66: TOKPA HOHO | C66: 0
B67: XWLACODJI KPODJI | C67: 5
B68: XWLACODJI PLAGE | C68: 4
B69: ZONGO EHUZU | C69: 4
B70: ZONGO NIMA | C70: 4
A71: 6EME ARRONDISSEMENT | B71: AHOUANSORI AGATA | C71: 0
B72: AHOUANSORI AGUE | C72: 4
B73: AHOUANSORI LADJI | C73: 2
B74: AHOUANSORI TOWETA | C74: 4
B75: AHOUANSORI TOWETA KPOTAI | C75: 4
B76: AIDJEDO | C76: 2
B77: AIDJEDO AHITO | C77: 4
B78: AIDJEDO GBEGO | C78: 4
B79: AIDJEDO VIGNON | C79: 2
B80: DANTOKPA | C80: 4
B81: DJIDJE | C81: 5
B82: DJIDJE AICHEDJI | C82: 4
B83: GBEDJROMEDE | C83: 5
B84: GBEDJROMEDE SUD | C84: 2
B85: HINDE NORD | C85: 3
B86: HINDE SUD | C86: 4
B87: JERICHO NORD | C87: 4
B88: JERICHO SUD | C88: 3
B89: VOSSA | C89: 4
A90: 7EME ARRONDISSEMENT | B90: DAGBEDJI SIKE | C90: 3
B91: ENAGNON-SIKE | C91: 2
B92: FIGNON SIKE | C92: 4
B93: GBEDOMIDJI | C93: 3
B94: GBENAN | C94: 3
B95: GBEWA | C95: 4
B96: MISSITE-SIKE | C96: 4
B97: SEDAMI | C97: 2
B98: SEDJRO SAINT MICHEL | C98: 5
B99: SEHOGAN SIKE | C99: 4
B100: TODOTE | C100: 4
B101: YEVEDO | C101: 0
A102: 8EME ARRONDISSEMENT | B102: AGBODJEDO STE RITA | C102: 4
B103: AGONTINKON | C103: 4
B104: GBEDAGBA | C104: 4
B105: HOUEHOUN | C105: 4
B106: HOUENOUSSOU STE RITA | C106: 3
B107: MEDEDJRO | C107: 4
B108: MINONKPO WOLOGUEDE | C108: 4
B109: TONATO | C109: 4
A110: 9EME ARRONDISSEMENT | B110: FIFADJI | C110: 4
B111: KINDONOU | C111: 5
B112: MENONTIN | C112: 3
B113: VOSSA-KPODJI | C113: 4
B114: ZOGBO | C114: 4
B115: ZOGBOHOUE | C115: 5
A116: 10EME ARRONDISSEMENT | B116: AGOUNVOCODJI | C116: 1
B117: GBENONKPO | C117: 3
B118: KOUHOUNOU | C118: 2
B119: MIDEDJI | C119: 3
B120: MISSEKPLE | C120: 3
B121: MISSOGBE | C121: 4
B122: SETOVI | C122: 4
B123: VEDOKO | C123: 6
B124: YENAWA-FIFADJI | C124: 4
A125: 11EME ARRONDISSEMENT | B125: GBEDIGA GUEDEHOUNGUE | C125: 3
B126: GBEGAMEY AHITO | C126: 4
B127: GBEGAMEY CENTRE | C127: 4
B128: GBEGAMEY DODO AYIDJE | C128: 4
B129: GBEGAMEY GBAGOUDO | C129: 2
B130: GBEGAMEY MIFONGOU | C130: 4
B131: HOUEYIHO | C131: 3
B132: HOUEYIHO TANOU | C132: 2
B133: SAINT JEAN GBEDIGA | C133: 4
B134: VODJE ALLOBATIN | C134: 4
B135: VODJE AYIDOTE | C135: 3
B136: VODJE CENTRE | C136: 4
B137: VODJE FINAGNON | C137: 2
A138: 12EME ARRONDISSEMENT | B138: AHOUANLEKO | C138: 4
B139: AIBATIN DODO | C139: 4
B140: AKOGBATO | C140: 4
B141: CADJEHOUN AGONGA | C141: 4
B142: CADJEHOUN AUPIAIS | C142: 3
B143: CADJEHOUN AZALOKOGON | C143: 4
B144: CADJEHOUN DETINSA | C144: 6
B145: CADJEHOUN GARE | C145: 4
B146: CADJEHOUN KPOTA | C146: 6
B147: FIDJROSSE CENTRE | C147: 5
B148: FIDJROSSE KPOTA | C148: 3
B149: FIYEGNON HOUTA | C149: 4
B150: FIYEGNON JACQUOT | C150: 4
B151: GBODJETIN | C151: 3
B152: HAIE VIVE | C152: 0
B153: HLAZOUNTO | C153: 4
B154: LES COCOTIERS | C154: 1
B155: VODJE KPOTA | C155: 4
B156: YEMICODJI | C156: 4
A157: 13EME ARRONDISSEMENT | B157: AGLA AGONGBOMEY | C157: 4
B158: AGLA AKPLOMEY | C158: 4
B159: AGLA FIGARO | C159: 3
B160: AGLA LES PYLONES | C160: 3
B161: AGLA PETIT CHATEAU | C161: 4
B162: AGLA SUD | C162: 3
B163: AGLAFINAFA | C163: 4
B164: AHOGBOHOUE CITE DE L'EXPERIENCE | C164: 5
B165: AHOGBOHOUE CITE EUCARISTIE | C165: 7
B166: AIBATIN KPOTA | C166: 4
B167: CITE ADJAHA | C167: 4
B168: GBEDEGBE | C168: 4
B169: HOUENOUSSOU | C169: 4
B170: MISSITE | C170: 4

Sheet CP
A1: Retour à l'accueil
A2: Tenue des sessions ordinaires des commissions permanentes
A3: Commissions permanentes (CP) | B3: Nom de la commission | C3: Effectif des membres | D3: Réunion N°1 | G3: Réunion N°2 | J3: Réunion N°3 | M3: Réunion N°4 | P3: Réunion N°5 | S3: Réunion N°6 | V3: Réunion N°7 | Y3: Réunion N°8 | AB3: Réunion N°9 | AE3: Réunion N°10 | AH3: Réunion N°11 | AK3: Réunion N°12
D4: Nombre de membres presents | E4: Nombre de propositions faites | F4: Nombre de propositions réalisées par le Maire | G4: Nombre de membres presents | H4: Nombre de propositions faites | I4: Nombre de propositions réalisées par le Maire | J4: Nombre de membres presents | K4: Nombre de propositions faites | L4: Nombre de propositions réalisées par le Maire | M4: Nombre de membres presents | N4: Nombre de propositions faites | O4: Nombre de propositions réalisées par le Maire | P4: Nombre de membres presents | Q4: Nombre de propositions faites | R4: Nombre de propositions réalisées par le Maire | S4: Nombre de membres presents | T4: Nombre de propositions faites | U4: Nombre de propositions réalisées par le Maire | V4: Nombre de membres presents | W4: Nombre de propositions faites | X4: Nombre de propositions réalisées par le Maire | Y4: Nombre de membres presents | Z4: Nombre de propositions faites | AA4: Nombre de propositions réalisées par le Maire | AB4: Nombre de membres presents | AC4: Nombre de propositions faites | AD4: Nombre de propositions réalisées par le Maire | AE4: Nombre de membres presents | AF4: Nombre de propositions faites | AG4: Nombre de propositions réalisées par le Maire | AH4: Nombre de membres presents | AI4: Nombre de propositions faites | AJ4: Nombre de propositions réalisées par le Maire | AK4: Nombre de membres presents | AL4: Nombre de propositions faites | AM4: Nombre de propositions réalisées par le Maire
A5: CP N°1 | B5: Commission des Affaires Economiques et Financieres (CAEF) | C5: 6 | D5: 3 | E5: 2 | F5: 2 | AP5: =C5*COUNTA(D5,G5,J5,M5,S5,V5,Y5,AB5,AE5,AH5,AK5) -> 6
A6: CP N°2 | B6: Commission des Affaires Domaniales et Environnementales (CADE) | C6: 7 | D6: 6 | E6: 2 | F6: 2 | AP6: 7
A7: CP N°3 | B7: Commission des Affaires Sociales et Culturelles (CASC) | C7: 6 | D7: 4 | E7: 2 | F7: 2 | AP7: 6
A8: CP N°4 | B8: Commission d'Assainissement, de Santé, de l'Hygiène et la Salubrité | C8: 5 | D8: 5 | E8: 2 | F8: 2 | AP8: 5
A9: CP N°5 | B9: Commission Infrastructures, Equipements et Transports | C9: 5 | D9: 5 | E9: 2 | F9: 2 | AP9: 5
A10: CP N°6 | B10: Commission de la Sécurité et de l'Immigration Urbaine | C10: 6 | D10: 4 | E10: 2 | F10: 2 | AP10: 6
A11: CP N°7 | B11: Commission Equipements Marchands | C11: 7 | D11: 4 | E11: 2 | F11: 2 | AP11: 7
A12: CP N°8 | B12: Commission Etudes, Planification et Développement Local | C12: 4 | D12: 4 | E12: 2 | F12: 2 | AP12: 4
A13: CP N°9 | AP13: 0
A14: CP N°10 | AP14: 0
A15: Nombre | C15: =COUNT(C5:C14) -> 8 | D15: 8 | E15: 8 | F15: 8 | G15: 0 | H15: 0 | I15: 0 | J15: 0 | K15: 0 | L15: 0 | M15: 0 | N15: 0 | O15: 0 | P15: 0 | Q15: 0 | R15: 0 | S15: 0 | T15: 0 | U15: 0 | V15: 0 | W15: 0 | X15: 0 | Y15: 0 | Z15: 0 | AA15: 0 | AB15: 0 | AC15: 0 | AD15: 0 | AE15: 0 | AF15: 0 | AG15: 0 | AH15: 0 | AI15: 0 | AJ15: 0 | AK15: 0 | AL15: 0 | AM15: 0 | AP15: =SUM(AP5:AP14) -> 46
A16: Effectif | C16: =SUM(C5:C14) -> 46 | D16: 35 | E16: 16 | F16: 16 | G16: 0 | H16: 0 | I16: 0 | J16: 0 | K16: 0 | L16: 0 | M16: 0 | N16: 0 | O16: 0 | P16: 0 | Q16: 0 | R16: 0 | S16: 0 | T16: 0 | U16: 0 | V16: 0 | W16: 0 | X16: 0 | Y16: 0 | Z16: 0 | AA16: 0 | AB16: 0 | AC16: 0 | AD16: 0 | AE16: 0 | AF16: 0 | AG16: 0 | AH16: 0 | AI16: 0 | AJ16: 0 | AK16: 0 | AL16: 0 | AM16: 0

Sheet Cadres de Concertation
A1: Retour à l'accueil
A2: Tenue des Cadres de Concertation
A3: Mairie-SDE | F3: Autres Cadres
A4: Effectif des membres du Cadre de Concertation Mairie-SDE | C4: 22 | F4: Education | G4: Eau, Hygiène et Assainissement | H4: Agricole | I4: Maire et OSC | J4: Nutrition | K4: Sport | L4: Autres
A5: Nombre de sessions prévues | C5: 2
A6: Sessions | B6: Effectif présent | C6: Date | D6: Nombre de séances tenues | F6: 0 | G6: 4 | H6: 3 | I6: 0 | J6: 2 | L6: 2
A7: Session N°1 | B7: 22 | C7: 2019-01-23
A8: Session N°2 | B8: 22 | C8: 2019-10-09
A9: Session N°3
A10: Session N°4
A11: Session N°5
A12: Session N°6
A13: Session N°7
A14: Session N°8
A15: Session N°9
A16: Session N°10
A17: Session N°11
A18: Session N°12

Sheet Tutelle
A1: Retour à l'accueil
A2: Participation aux CDCC | E2: Budget communal (Budget primitif) | F2: Le budget est transmis ou pas. | H2: TRANSMIS
A3: Effectif (Maire et ses adjoints) | C3: 16 | F3: Date d'adoption du budget | H3: 2018-11-29
A4: Sessions | B4: Effectif présent | C4: Date début session | D4: Date fin session | F4: Date de transmission du budget à la tutelle | H4: 2018-12-04
A5: CDCC N°1 | B5: 16 | C5: 2019-01-23 | D5: 2019-01-23 | F5: Date d'approbation du budget par la tutelle | H5: 2018-12-31
A6: CDCC N°2 | B6: 16 | C6: 2019-10-09 | D6: 2019-10-09 | E6: Compte Administratif | F6: Le compte administratif est transmis ou pas. | H6: TRANSMIS
A7: Conformité des actes | F7: Date d'adoption du compte administratif de l'année 2018 | H7: 2019-05-31
A8: Nombre d’actes conformes | D8: 210 | F8: Date de transmission à la tutelle | H8: 2019-06-03
A9: Nombre d’actes soumis pour approbation | D9: 210 | F9: Date d'approbation du compte administratif par la tutelle | H9: 2019-06-24

Sheet Marchés
A1: Retour à l'accueil
A2: Type de commune | E2: Commune à statut particulier
A3: Plan de passation des marchés publics publiés | E3: OUI
A4: Nombre de marchés publics passés hors plan de passation des marchés | E4: 0
A5: Nombre de marchés conclus dans l'année | E5: 103
A6: Nombre de marchés conclus dans l’année ayant respecté les procédures | E6: 103
A7: Mode de passation | B7: Délai de passation | C7: Marché N°1 | E7: Marché N°2 | G7: Marché N°3 | I7: Marché N°4 | K7: Marché N°5 | M7: Marché N°6 | O7: Marché N°7 | Q7: Marché N°8 | S7: Marché N°9 | U7: Marché N°10 | W7: Marché N°11 | Y7: Marché N°12 | AA7: Marché N°13 | AC7: Marché N°14 | AE7: Marché N°15 | AG7: Marché N°16 | AI7: Marché N°17 | AK7: Marché N°18 | AM7: Marché N°19 | AO7: Marché N°20 | AQ7: Marché N°21 | AS7: Marché N°22 | AU7: Marché N°23 | AW7: Marché N°24 | AY7: Marché N°25 | BA7: Marché N°26 | BC7: Marché N°27 | BE7: Marché N°28 | BG7: Marché N°29 | BI7: Marché N°30 | BK7: Marché N°31 | BM7: Marché N°32 | BO7: Marché N°33 | BQ7: Marché N°34 | BS7: Marché N°35 | BU7: Marché N°36 | BW7: Marché N°37 | BY7: Marché N°38 | CA7: Marché N°39 | CC7: Marché N°40 | CE7: Marché N°41 | CG7: Marché N°42 | CI7: Marché N°43 | CK7: Marché N°44 | CM7: Marché N°45 | CO7: Marché N°46 | CQ7: Marché N°47 | CS7: Marché N°48 | CU7: Marché N°49 | CW7: Marché N°50 | CY7: Marché N°51 | DA7: Marché N°52 | DC7: Marché N°53 | DE7: Marché N°54 | DG7: Marché N°55 | DI7: Marché N°56 | DK7: Marché N°57 | DM7: Marché N°58 | DO7: Marché N°59 | DQ7: Marché N°60 | DS7: Marché N°61 | DU7: Marché N°62 | DW7: Marché N°63 | DY7: Marché N°64 | EA7: Marché N°65 | EC7: Marché N°66 | EE7: Marché N°67 | EG7: Marché N°68 | EI7: Marché N°69 | EK7: Marché N°70 | EM7: Marché N°71 | EO7: Marché N°72 | EQ7: Marché N°73 | ES7: Marché N°74 | EU7: Marché N°75 | EW7: Marché N°76 | EY7: Marché N°77 | FA7: Marché N°78 | FC7: Marché N°79 | FE7: Marché N°80 | FG7: Marché N°81 | FI7: Marché N°82 | FK7: Marché N°83 | FM7: Marché N°84 | FO7: Marché N°85 | FQ7: Marché N°86 | FS7: Marché N°87 | FU7: Marché N°88 | FW7: Marché N°89 | FY7: Marché N°90 | GA7: Marché N°91 | GC7: Marché N°92 | GE7: Marché N°93 | GG7: Marché N°94 | GI7: Marché N°95 | GK7: Marché N°96 | GM7: Marché N°97 | GO7: Marché N°98 | GQ7: Marché N°99 | GS7: Marché N°100 | GU7: Marché N°101 | GW7: Marché N°102 | GY7: Marché N°103
C8: Ouverture des voies en terre dans le 13ème arrondissement de Cotonou | E8: Travaux de réfection des écoles maternelles et primaires publiques de la ville de Cotonou (lot 2) | G8: Travaux de réfection des écoles maternelles et primaires publiques de la ville de Cotonou (lot 1) | I8: Travaux de réfection des écoles maternelles et primaires publiques de la ville de Cotonou (lot 1) | K8: Travaux de réfection des écoles maternelles et primaires publiques de la ville de Cotonou (lot 4) | M8: Travaux de réfection des écoles maternelles et primaires publiques de la ville de Cotonou (lot 5) | O8: Assurance des véhicules légers, camions et engins lourds | Q8: Aménagement des cours et aires jeux des écoles primaires publiques | S8: Reboisement dans la ville de cotonou | U8: Acquisition de 8 sabots blocs roues adapté à tout type de véhicules | W8: Fournitures des valuers inatives | Y8: Travaux de construction,reconstruction et réfection des marchés secondaires | AA8: Travaux de construction d'un module de 4 salle de classe en rez de chaussée extensibles R +2 au CEG Suru-léré dans le 1er arrondissement | AC8: Embellissement de la ville de Cotonou dans le cadre des festivités du 1er août 2019 | AE8: Réalisation de l'opérationnalisation de la taxe sur le développement local dans la commune de cotonou | AG8: Elaboration d'un répertoire de toponymie dans le cadre de baptême des rues dans la commune de cotonou | AI8: Mise en place d'une base de données statistiques dotée d'application SIG au profit de la mairie de cotonou | AK8: Elaboration d'un maniel de suivi-évaluation des projets et programmes de la mairie de cotonou | AM8: Acquisition de fourniture de bureau au profit de la mairie de cotonou | AO8: Construction d'un caniveau dans le 6ème arrondissement de cotonou et corresction de dégradation dans le 11ème arrondissement | AQ8: Location d'engins lourds | AS8: destruction des produits avariés | AU8: Travaux de fabrication et pose de dalettes dans les arrondissements | AW8: Entretien et la réfection des aires de jeux dans la ville de cotonou | AY8: Acquisition du matériel et équipements de travail et d'intervention de la cellule de communication | BA8: Entretien de 3900ml des voies en terre dans le 6ème et 8ème arrondissement lot 2 | BC8: Entretien de 3900ml des voies en terre dans le 6ème arrondissement lot 1 | BE8: Entretien de 1700 ml des voies en terre dans le 10ème arrrondissement lot 4 | BG8: Entretien de 1700 ml des voies en terre dans le 10ème arrondissement (lot 5) | BI8: Entretien de 1700 ml des voies en terre dans le 4ème arrondissement (lot 6) | BK8: Entretien de 1800 ml des voies en terre dans le 8ème arrondissement de cotonou (lot 3) | BM8: Travaux de dégagement, nettoyage et badigeonnage de la place du souvenir dans la ville de cotonou | BO8: Acquisition d'une caméra au profit de la mairie de cotonou | BQ8: Entretien des voies en terre dans le 5ème et 7ème arrondissement (lot 2) | BS8: Travaux d'entretien des voies pavées dans le 2ème et 3ème arrondissement (lot 1) | BU8: Travaux d'entretien des voies pavées dans le 9ème et 12ème arrondissement (lot 3) | BW8: Travaux d'entretien des voies pavées dans le 13ème arrondissement (lot 4) | BY8: Entretien et la maintenance des feux tricolores de certains carrefours de la ville de Cotonou | CA8: Entretien, réparation des véhicules légers, camions et engins lourds de la mairie de cotonou (lot 3) | CC8: Entretien, réparation des véhicules légers, camions et engins lourds de la mairie de cotonou (lot 2) | CE8: Entretien, réparation des véhicules légers, camions et engins lourds de la mairie de cotonou (lot 1) | CG8: Travaux de construction d'un bâtiment sanitaire RDC (extensible) R + 1 pour abriter le dispensaire du centre de santé d'Agbato | CI8: Travaux de construction et réfection de bâtiment sanitaire (lot 2) travaux d'extension de centre de santé de sikècodji en rez de chaussée plus étage (R +1) | CK8: Travaux de construction et réfection de bâtiment sanitaire (lot 1) travaux d'aménagement de la cour du centre de vaccination de tokpa hoho | CM8: Entretien des espaces verts, jardins, monuments et places publiques | CO8: Entretien des cimetières | CQ8: Entretien et vidange des fosses septiques de la mairie | CS8: Réparation des chicanes de la police municipale | CU8: Reconstruction ou construction des écoles primaires et maternelles (lot 2) | CW8: Reconstruction ou réfection des écoles primaires et maternelles (lot 1) | CY8: Reconstruction ou réfection des écoles primaires et maternelles (lot 4) | DA8: Construction, reconstruction ou réfection des écoles primaires et maternelles (lot 7) | DC8: Construction, reconstruction ou réfection des écoles primaires et maternelles (lot 8) | DE8: Construction ou réfection des écoles primaires et maternelles (lot 5) | DG8: Maintenance et la mise à jour du logiciel de gestion financière et comptable | DI8: Construction, reconstruction ou réfection des écoles primaires et maternelles (lot 3) | DK8: Construction, reconstruction ou réfection des écoles primaires et maternelles (lot 6) | DM8: Elaboration du manuel de procédures financières et comptables au profit de la mairie de cotonou | DO8: Entretien et réparartion des moboliers de bureau de la mairie de cotonou | DQ8: Elaboration de l'APS de l'assainissement et le verdissement scolaire de la ville de Cotonou | DS8: Conception, mise en ligne et hébergement du site web de la mairie de cotonou | DU8: Actualisation et vulgarisation du plan de contingence de la ville de cotonou | DW8: Acquisition de moustiquaires dans le cadre des inondations et autres | DY8: Acquisition de consommables informatiques | EA8: Recrutement d'un prestataire pour la mise place d'un outil pour l'organisation de la reddition de comptes à la mairie de cotonou | EC8: Acquisition complémentaire de petits matériels et outillages | EE8: Acquisition de sabots bloque roues au profit de la police municipale | EG8: Maintenance du système de sécurité de la poinçonneuse du logiciel de gestion des titres de perception, autres équipements et matériels de la régie principale | EI8: Achat de matériels d'électricités, de plomberie, de menuiserie, informatiques et autres | EK8: Elaboration du cadre organique de gestion des ressources humaines au profit de la mairie de cotonou | EM8: Acquisition de petits matériels et outillages | EO8: Acquisition de climatiseurs | EQ8: Acquisition de 1000 tables et bancs + transport dans le 1er, 3ème et 4ème arrondissement (lot 1) | ES8: Acquisition de 1000 tables et bancs + transport dans le 5ème, 6ème, 7ème et 8ème arrondissement (lot 2) | EU8: Acquisition de 1176 tables et bancs + transport dans le 9ème, 10ème, 11ème, 12ème et 13ème arrondissement (lot 3) | EW8: Réfection de toiture du magasin de la direction des services éconmiques et financiers de la mairie de cotonou | EY8: appui à l'hygiène dans les habitations insalubres des 13 arrondissements de la ville de cotonou | FA8: Achat de carte de recharge, cadenas et autres matériels pour les opérations de recouvrement des services des recettes (patentes foraines) | FC8: Organisation de visites et soins médicaux aux écoliers des centres des aveugles, amblyopes et sourds de Sègbèya de Vêdoko, de Dandji, de yèmicodji et Ladji | FE8: Achat de vivres au profit des orphélins de VIH/SIDA | FG8: Réhabilitation de réseau de signalisation de la ville de Cotonou | FI8: Acquisition de mobiliers de bureau au profit de la mairie de cotonou | FK8: Travaux de construction, reconstruction et réfection des marchés secondaires de la ville de cotonou | FM8: Embellissement de la ville de cotonou | FO8: Acquisition de matériels de bureau au profit de la mairie de cotonou (lot 1) | FQ8: Acquisition de matériels de bureau au profit de la mairie de cotonou (lot 2) | FS8: Assainissement et construction de 20 dalots dans les arrondissements de cotonou | FU8: acquisition de matériels pour l'entretien de réseau de signalisation | FW8: Réalisation de l'étude sur la modernisation et l'exploitation de l'espace publicitaire dans la commune de cotonou | FY8: Acquisition d'équipements funéraires | GA8: Travaux de construction, reconstruction, réfection d'installations funèbres, construction de 230 fosses à Somè | GC8: Fourniture des registres de l'état civil et autres imprimés divers (lot 2) | GE8: Fourniture des registres de l'état civil (registre de naissance) (lot 1) | GG8: Construction, reconstruction ou réfection de l'hôtel de ville | GI8: Construction de toilettes et cabines sanitaires dans la ville de cotonou (FADeC non affecté) | GK8: Travaux de construction, reconstruction, réfection d'installations funèbres, construction de 140 fosses à Somè | GM8: Travaux de construction de la clôture de l'EPP FINANGNON | GO8: Travaux de réhabilitation de la place publique du carrefours la vie dans le 10ème arrondissement | GQ8: Fourniture et pose de 2100 dalettes dans les arrondissements (lot 3) | GS8: Construction de 15 dalots dans les arrondissements de cotonou | GU8: Acquisition de 16 véhicules légers pour les CA | GW8: Travaux de badigeonnage des artères et de réfection de voies entrant dans les préparatifs de la fête du 1er août 2019 | GY8: Confection de badges au profit des agents de la mairie de cotonou
B9: 86 | C9: Type de marchés publics | D9: Nombre de jours consacrés à la passation | E9: Type de marchés publics | F9: Nombre de jours consacrés à la passation | G9: Type de marchés publics | H9: Nombre de jours consacrés à la passation | I9: Type de marchés publics | J9: Nombre de jours consacrés à la passation | K9: Type de marchés publics | L9: Nombre de jours consacrés à la passation | M9: Type de marchés publics | N9: Nombre de jours consacrés à la passation | O9: Type de marchés publics | P9: Nombre de jours consacrés à la passation | Q9: Type de marchés publics | R9: Nombre de jours consacrés à la passation | S9: Type de marchés publics | T9: Nombre de jours consacrés à la passation | U9: Type de marchés publics | V9: Nombre de jours consacrés à la passation | W9: Type de marchés publics | X9: Nombre de jours consacrés à la passation | Y9: Type de marchés publics | Z9: Nombre de jours consacrés à la passation | AA9: Type de marchés publics | AB9: Nombre de jours consacrés à la passation | AC9: Type de marchés publics | AD9: Nombre de jours consacrés à la passation | AE9: Type de marchés publics | AF9: Nombre de jours consacrés à la passation | AG9: Type de marchés publics | AH9: Nombre de jours consacrés à la passation | AI9: Type de marchés publics | AJ9: Nombre de jours consacrés à la passation | AK9: Type de marchés publics | AL9: Nombre de jours consacrés à la passation | AM9: Type de marchés publics | AN9: Nombre de jours consacrés à la passation | AO9: Type de marchés publics | AP9: Nombre de jours consacrés à la passation | AQ9: Type de marchés publics | AR9: Nombre de jours consacrés à la passation | AS9: Type de marchés publics | AT9: Nombre de jours consacrés à la passation | AU9: Type de marchés publics | AV9: Nombre de jours consacrés à la passation | AW9: Type de marchés publics | AX9: Nombre de jours consacrés à la passation | AY9: Type de marchés publics | AZ9: Nombre de jours consacrés à la passation | BA9: Type de marchés publics | BB9: Nombre de jours consacrés à la passation | BC9: Type de marchés publics | BD9: Nombre de jours consacrés à la passation | BE9: Type de marchés publics | BF9: Nombre de jours consacrés à la passation | BG9: Type de marchés publics | BH9: Nombre de jours consacrés à la passation | BI9: Type de marchés publics | BJ9: Nombre de jours consacrés à la passation | BK9: Type de marchés publics | BL9: Nombre de jours consacrés à la passation | BM9: Type de marchés publics | BN9: Nombre de jours consacrés à la passation | BO9: Type de marchés publics | BP9: Nombre de jours consacrés à la passation | BQ9: Type de marchés publics | BR9: Nombre de jours consacrés à la passation | BS9: Type de marchés publics | BT9: Nombre de jours consacrés à la passation | BU9: Type de marchés publics | BV9: Nombre de jours consacrés à la passation | BW9: Type de marchés publics | BX9: Nombre de jours consacrés à la passation | BY9: Type de marchés publics | BZ9: Nombre de jours consacrés à la passation | CA9: Type de marchés publics | CB9: Nombre de jours consacrés à la passation | CC9: Type de marchés publics | CD9: Nombre de jours consacrés à la passation | CE9: Type de marchés publics | CF9: Nombre de jours consacrés à la passation | CG9: Type de marchés publics | CH9: Nombre de jours consacrés à la passation | CI9: Type de marchés publics | CJ9: Nombre de jours consacrés à la passation | CK9: Type de marchés publics | CL9: Nombre de jours consacrés à la passation | CM9: Type de marchés publics | CN9: Nombre de jours consacrés à la passation | CO9: Type de marchés publics | CP9: Nombre de jours consacrés à la passation | CQ9: Type de marchés publics | CR9: Nombre de jours consacrés à la passation | CS9: Type de marchés publics | CT9: Nombre de jours consacrés à la passation | CU9: Type de marchés publics | CV9: Nombre de jours consacrés à la passation | CW9: Type de marchés publics | CX9: Nombre de jours consacrés à la passation | CY9: Type de marchés publics | CZ9: Nombre de jours consacrés à la passation | DA9: Type de marchés publics | DB9: Nombre de jours consacrés à la passation | DC9: Type de marchés publics | DD9: Nombre de jours consacrés à la passation | DE9: Type de marchés publics | DF9: Nombre de jours consacrés à la passation | DG9: Type de marchés publics | DH9: Nombre de jours consacrés à la passation | DI9: Type de marchés publics | DJ9: Nombre de jours consacrés à la passation | DK9: Type de marchés publics | DL9: Nombre de jours consacrés à la passation | DM9: Type de marchés publics | DN9: Nombre de jours consacrés à la passation | DO9: Type de marchés publics | DP9: Nombre de jours consacrés à la passation | DQ9: Type de marchés publics | DR9: Nombre de jours consacrés à la passation | DS9: Type de marchés publics | DT9: Nombre de jours consacrés à la passation | DU9: Type de marchés publics | DV9: Nombre de jours consacrés à la passation | DW9: Type de marchés publics | DX9: Nombre de jours consacrés à la passation | DY9: Type de marchés publics | DZ9: Nombre de jours consacrés à la passation | EA9: Type de marchés publics | EB9: Nombre de jours consacrés à la passation | EC9: Type de marchés publics | ED9: Nombre de jours consacrés à la passation | EE9: Type de marchés publics | EF9: Nombre de jours consacrés à la passation | EG9: Type de marchés publics | EH9: Nombre de jours consacrés à la passation | EI9: Type de marchés publics | EJ9: Nombre de jours consacrés à la passation | EK9: Type de marchés publics | EL9: Nombre de jours consacrés à la passation | EM9: Type de marchés publics | EN9: Nombre de jours consacrés à la passation | EO9: Type de marchés publics | EP9: Nombre de jours consacrés à la passation | EQ9: Type de marchés publics | ER9: Nombre de jours consacrés à la passation | ES9: Type de marchés publics | ET9: Nombre de jours consacrés à la passation | EU9: Type de marchés publics | EV9: Nombre de jours consacrés à la passation | EW9: Type de marchés publics | EX9: Nombre de jours consacrés à la passation | EY9: Type de marchés publics | EZ9: Nombre de jours consacrés à la passation | FA9: Type de marchés publics | FB9: Nombre de jours consacrés à la passation | FC9: Type de marchés publics | FD9: Nombre de jours consacrés à la passation | FE9: Type de marchés publics | FF9: Nombre de jours consacrés à la passation | FG9: Type de marchés publics | FH9: Nombre de jours consacrés à la passation | FI9: Type de marchés publics | FJ9: Nombre de jours consacrés à la passation | FK9: Type de marchés publics | FL9: Nombre de jours consacrés à la passation | FM9: Type de marchés publics | FN9: Nombre de jours consacrés à la passation | FO9: Type de marchés publics | FP9: Nombre de jours consacrés à la passation | FQ9: Type de marchés publics | FR9: Nombre de jours consacrés à la passation | FS9: Type de marchés publics | FT9: Nombre de jours consacrés à la passation | FU9: Type de marchés publics | FV9: Nombre de jours consacrés à la passation | FW9: Type de marchés publics | FX9: Nombre de jours consacrés à la passation | FY9: Type de marchés publics | FZ9: Nombre de jours consacrés à la passation | GA9: Type de marchés publics | GB9: Nombre de jours consacrés à la passation | GC9: Type de marchés publics | GD9: Nombre de jours consacrés à la passation | GE9: Type de marchés publics | GF9: Nombre de jours consacrés à la passation | GG9: Type de marchés publics | GH9: Nombre de jours consacrés à la passation | GI9: Type de marchés publics | GJ9: Nombre de jours consacrés à la passation | GK9: Type de marchés publics | GL9: Nombre de jours consacrés à la passation | GM9: Type de marchés publics | GN9: Nombre de jours consacrés à la passation | GO9: Type de marchés publics | GP9: Nombre de jours consacrés à la passation | GQ9: Type de marchés publics | GR9: Nombre de jours consacrés à la passation | GS9: Type de marchés publics | GT9: Nombre de jours consacrés à la passation | GU9: Type de marchés publics | GV9: Nombre de jours consacrés à la passation | GW9: Type de marchés publics | GX9: Nombre de jours consacrés à la passation | GY9: Type de marchés publics | GZ9: Nombre de jours consacrés à la passation
A10: Appel Offre Ouvert | B10: 46 | E10: Travaux | F10: 119 | G10: Travaux | H10: 119 | I10: Travaux | J10: 119 | K10: Travaux | L10: 119 | M10: Travaux | N10: 119 | BA10: Travaux | BB10: 135 | BC10: Travaux | BD10: 75 | BE10: Travaux | BF10: 119 | BG10: Travaux | BH10: 135 | BI10: Travaux | BJ10: 135 | BK10: Travaux | BL10: 135 | BQ10: Travaux | BR10: 69 | BS10: Travaux | BT10: 69 | BU10: Travaux | BV10: 69 | BW10: Travaux | BX10: 69 | BZ10: 119 | CU10: Travaux | CV10: 457 | CW10: Travaux | CX10: 457 | CY10: Travaux | CZ10: 457 | DA10: Travaux | DB10: 457 | DC10: Travaux | DD10: 457 | DE10: Travaux | DF10: 457 | DG10: Travaux | DH10: 119 | DI10: Travaux | DJ10: 457 | DK10: Travaux | DL10: 457 | EQ10: Fournitures et Services | ER10: 98 | ES10: Fournitures et Services | ET10: 51 | EU10: Fournitures et Services | EV10: 98 | FE10: Travaux | FF10: 119 | FS10: Travaux | FT10: 76 | GQ10: Travaux | GR10: 76 | GS10: Travaux | GT10: 76 | GU10: Fournitures et Services | GV10: 165
A11: Demande de renseignement | B11: 27 | C11: Travaux | D11: 96 | O11: Fournitures et Services | P11: 44 | Q11: Travaux | R11: 107 | W11: Fournitures et Services | X11: 57 | Y11: Travaux | Z11: 30 | AA11: Travaux | AB11: 46 | AM11: Fournitures et Services | AN11: 98 | AO11: Travaux | AP11: 118 | AQ11: Fournitures et Services | AR11: 32 | BY11: Travaux | BZ11: 102 | CA11: Fournitures et Services | CB11: 105 | CC11: Fournitures et Services | CD11: 105 | CE11: Fournitures et Services | CF11: 105 | CG11: Travaux | CH11: 34 | CI11: Travaux | CJ11: 109 | CK11: Travaux | CL11: 109 | CM11: Travaux | CN11: 115 | CO11: Fournitures et Services | CP11: 167 | CQ11: Fournitures et Services | CR11: 88 | DY11: Fournitures et Services | DZ11: 158 | EO11: Fournitures et Services | EP11: 61 | FG11: Travaux | FH11: 68 | FM11: Fournitures et Services | FN11: 18 | FO11: Fournitures et Services | FP11: 60 | FQ11: Fournitures et Services | FR11: 60 | FU11: Fournitures et Services | FV11: 29 | FW11: Prestation intellectuelle réalisée par un cabinet | FX11: 122 | GA11: Travaux | GB11: 97 | GC11: Fournitures et Services | GD11: 76 | GE11: Fournitures et Services | GF11: 76 | GG11: Travaux | GH11: 75 | GI11: Travaux | GJ11: 131 | GK11: Travaux | GL11: 77 | GM11: Travaux | GN11: 75 | GO11: Travaux | GP11: 50
A12: Demande de cotation | B12: 65 | S12: Fournitures et Services | T12: 10 | U12: Fournitures et Services | V12: 54 | AC12: Fournitures et Services | AD12: 7 | AE12: Prestation intellectuelle réalisée par un cabinet | AF12: 46 | AG12: Prestation intellectuelle réalisée par un cabinet | AH12: 54 | AI12: Prestation intellectuelle réalisée par un cabinet | AJ12: 50 | AK12: Prestation intellectuelle réalisée par un cabinet | AL12: 41 | AS12: Fournitures et Services | AT12: 39 | AU12: Travaux | AV12: 75 | AW12: Travaux | AX12: 40 | AY12: Fournitures et Services | AZ12: 66 | BM12: Travaux | BN12: 41 | BO12: Fournitures et Services | BP12: 17 | CS12: Fournitures et Services | CT12: 81 | DG12: Fournitures et Services | DH12: 40 | DM12: Prestation intellectuelle réalisée par un cabinet | DN12: 127 | DO12: Fournitures et Services | DP12: 127 | DQ12: Prestation intellectuelle réalisée par un cabinet | DR12: 41 | DS12: Prestation intellectuelle réalisée par un cabinet | DT12: 47 | DU12: Prestation intellectuelle réalisée par un cabinet | DV12: 41 | DW12: Fournitures et Services | DX12: 169 | EA12: Fournitures et Services | EB12: 45 | EC12: Fournitures et Services | ED12: 19 | EE12: Fournitures et Services | EF12: 19 | EG12: Fournitures et Services | EH12: 37 | EI12: Fournitures et Services | EJ12: 54 | EK12: Prestation intellectuelle réalisée par un cabinet | EL12: 148 | EM12: Fournitures et Services | EN12: 154 | EW12: Travaux | EX12: 66 | EY12: Fournitures et Services | EZ12: 64 | FA12: Fournitures et Services | FB12: 24 | FC12: Fournitures et Services | FD12: 76 | FE12: Fournitures et Services | FF12: 214 | FI12: Fournitures et Services | FJ12: 44 | FK12: Travaux | FL12: 61 | FY12: Fournitures et Services | FZ12: 25 | GW12: Travaux | GX12: 7 | GY12: Fournitures et Services | GZ12: 174
D13: =IF(C10="",0,IF(D10<=$B10,1,0)) -> 0 | F13: =IF(E10="",0,IF(F10<=$B10,1,0)) -> 0 | H13: =IF(G10="",0,IF(H10<=$B10,1,0)) -> 0 | J13: =IF(I10="",0,IF(J10<=$B10,1,0)) -> 0 | L13: =IF(K10="",0,IF(L10<=$B10,1,0)) -> 0 | N13: =IF(M10="",0,IF(N10<=$B10,1,0)) -> 0 | P13: =IF(O10="",0,IF(P10<=$B10,1,0)) -> 0 | R13: =IF(Q10="",0,IF(R10<=$B10,1,0)) -> 0 | T13: =IF(S10="",0,IF(T10<=$B10,1,0)) -> 0 | V13: =IF(U10="",0,IF(V10<=$B10,1,0)) -> 0 | X13: =IF(W10="",0,IF(X10<=$B10,1,0)) -> 0 | Z13: =IF(Y10="",0,IF(Z10<=$B10,1,0)) -> 0 | AB13: =IF(AA10="",0,IF(AB10<=$B10,1,0)) -> 0 | AD13: =IF(AC10="",0,IF(AD10<=$B10,1,0)) -> 0 | AF13: =IF(AE10="",0,IF(AF10<=$B10,1,0)) -> 0 | AH13: =IF(AG10="",0,IF(AH10<=$B10,1,0)) -> 0 | AJ13: =IF(AI10="",0,IF(AJ10<=$B10,1,0)) -> 0 | AL13: =IF(AK10="",0,IF(AL10<=$B10,1,0)) -> 0 | AN13: =IF(AM10="",0,IF(AN10<=$B10,1,0)) -> 0 | AP13: =IF(AO10="",0,IF(AP10<=$B10,1,0)) -> 0 | AR13: =IF(AQ10="",0,IF(AR10<=$B10,1,0)) -> 0 | AT13: =IF(AS10="",0,IF(AT10<=$B10,1,0)) -> 0 | AV13: =IF(AU10="",0,IF(AV10<=$B10,1,0)) -> 0 | AX13: =IF(AW10="",0,IF(AX10<=$B10,1,0)) -> 0 | AZ13: =IF(AY10="",0,IF(AZ10<=$B10,1,0)) -> 0 | BB13: =IF(BA10="",0,IF(BB10<=$B10,1,0)) -> 0 | BD13: =IF(BC10="",0,IF(BD10<=$B10,1,0)) -> 0 | BF13: =IF(BE10="",0,IF(BF10<=$B10,1,0)) -> 0 | BH13: =IF(BG10="",0,IF(BH10<=$B10,1,0)) -> 0 | BJ13: =IF(BI10="",0,IF(BJ10<=$B10,1,0)) -> 0 | BL13: =IF(BK10="",0,IF(BL10<=$B10,1,0)) -> 0 | BN13: =IF(BM10="",0,IF(BN10<=$B10,1,0)) -> 0 | BP13: =IF(BO10="",0,IF(BP10<=$B10,1,0)) -> 0 | BR13: =IF(BQ10="",0,IF(BR10<=$B10,1,0)) -> 0 | BT13: =IF(BS10="",0,IF(BT10<=$B10,1,0)) -> 0 | BV13: =IF(BU10="",0,IF(BV10<=$B10,1,0)) -> 0 | BX13: =IF(BW10="",0,IF(BX10<=$B10,1,0)) -> 0 | BZ13: =IF(BY10="",0,IF(BZ10<=$B10,1,0)) -> 0 | CB13: =IF(CA10="",0,IF(CB10<=$B10,1,0)) -> 0 | CD13: =IF(CC10="",0,IF(CD10<=$B10,1,0)) -> 0 | CF13: =IF(CE10="",0,IF(CF10<=$B10,1,0)) -> 0 | CH13: =IF(CG10="",0,IF(CH10<=$B10,1,0)) -> 0 | CJ13: =IF(CI10="",0,IF(CJ10<=$B10,1,0)) -> 0 | CL13: =IF(CK10="",0,IF(CL10<=$B10,1,0)) -> 0 | CN13: =IF(CM10="",0,IF(CN10<=$B10,1,0)) -> 0 | CP13: =IF(CO10="",0,IF(CP10<=$B10,1,0)) -> 0 | CR13: =IF(CQ10="",0,IF(CR10<=$B10,1,0)) -> 0 | CT13: =IF(CS10="",0,IF(CT10<=$B10,1,0)) -> 0 | CV13: =IF(CU10="",0,IF(CV10<=$B10,1,0)) -> 0 | CX13: =IF(CW10="",0,IF(CX10<=$B10,1,0)) -> 0 | CZ13: =IF(CY10="",0,IF(CZ10<=$B10,1,0)) -> 0 | DB13: =IF(DA10="",0,IF(DB10<=$B10,1,0)) -> 0 | DD13: =IF(DC10="",0,IF(DD10<=$B10,1,0)) -> 0 | DF13: =IF(DE10="",0,IF(DF10<=$B10,1,0)) -> 0 | DH13: =IF(DG10="",0,IF(DH10<=$B10,1,0)) -> 0 | DJ13: =IF(DI10="",0,IF(DJ10<=$B10,1,0)) -> 0 | DL13: =IF(DK10="",0,IF(DL10<=$B10,1,0)) -> 0 | DN13: =IF(DM10="",0,IF(DN10<=$B10,1,0)) -> 0 | DP13: =IF(DO10="",0,IF(DP10<=$B10,1,0)) -> 0 | DR13: =IF(DQ10="",0,IF(DR10<=$B10,1,0)) -> 0 | DT13: =IF(DS10="",0,IF(DT10<=$B10,1,0)) -> 0 | DV13: =IF(DU10="",0,IF(DV10<=$B10,1,0)) -> 0 | DX13: =IF(DW10="",0,IF(DX10<=$B10,1,0)) -> 0 | DZ13: =IF(DY10="",0,IF(DZ10<=$B10,1,0)) -> 0 | EB13: =IF(EA10="",0,IF(EB10<=$B10,1,0)) -> 0 | ED13: =IF(EC10="",0,IF(ED10<=$B10,1,0)) -> 0 | EF13: =IF(EE10="",0,IF(EF10<=$B10,1,0)) -> 0 | EH13: =IF(EG10="",0,IF(EH10<=$B10,1,0)) -> 0 | EJ13: =IF(EI10="",0,IF(EJ10<=$B10,1,0)) -> 0 | EL13: =IF(EK10="",0,IF(EL10<=$B10,1,0)) -> 0 | EN13: =IF(EM10="",0,IF(EN10<=$B10,1,0)) -> 0 | EP13: =IF(EO10="",0,IF(EP10<=$B10,1,0)) -> 0 | ER13: =IF(EQ10="",0,IF(ER10<=$B10,1,0)) -> 0 | ET13: =IF(ES10="",0,IF(ET10<=$B10,1,0)) -> 0 | EV13: =IF(EU10="",0,IF(EV10<=$B10,1,0)) -> 0 | EX13: =IF(EW10="",0,IF(EX10<=$B10,1,0)) -> 0 | EZ13: =IF(EY10="",0,IF(EZ10<=$B10,1,0)) -> 0 | FB13: =IF(FA10="",0,IF(FB10<=$B10,1,0)) -> 0 | FD13: =IF(FC10="",0,IF(FD10<=$B10,1,0)) -> 0 | FF13: =IF(FE10="",0,IF(FF10<=$B10,1,0)) -> 0 | FH13: =IF(FG10="",0,IF(FH10<=$B10,1,0)) -> 0 | FJ13: =IF(FI10="",0,IF(FJ10<=$B10,1,0)) -> 0 | FL13: =IF(FK10="",0,IF(FL10<=$B10,1,0)) -> 0 | FN13: =IF(FM10="",0,IF(FN10<=$B10,1,0)) -> 0 | FP13: =IF(FO10="",0,IF(FP10<=$B10,1,0)) -> 0 | FR13: =IF(FQ10="",0,IF(FR10<=$B10,1,0)) -> 0 | FT13: =IF(FS10="",0,IF(FT10<=$B10,1,0)) -> 0 | FV13: =IF(FU10="",0,IF(FV10<=$B10,1,0)) -> 0 | FX13: =IF(FW10="",0,IF(FX10<=$B10,1,0)) -> 0 | FZ13: =IF(FY10="",0,IF(FZ10<=$B10,1,0)) -> 0 | GB13: =IF(GA10="",0,IF(GB10<=$B10,1,0)) -> 0 | GD13: =IF(GC10="",0,IF(GD10<=$B10,1,0)) -> 0 | GF13: =IF(GE10="",0,IF(GF10<=$B10,1,0)) -> 0 | GH13: =IF(GG10="",0,IF(GH10<=$B10,1,0)) -> 0 | GJ13: =IF(GI10="",0,IF(GJ10<=$B10,1,0)) -> 0 | GL13: =IF(GK10="",0,IF(GL10<=$B10,1,0)) -> 0 | GN13: =IF(GM10="",0,IF(GN10<=$B10,1,0)) -> 0 | GP13: =IF(GO10="",0,IF(GP10<=$B10,1,0)) -> 0 | GR13: =IF(GQ10="",0,IF(GR10<=$B10,1,0)) -> 0 | GT13: =IF(GS10="",0,IF(GT10<=$B10,1,0)) -> 0 | GV13: =IF(GU10="",0,IF(GV10<=$B10,1,0)) -> 0 | GX13: =IF(GW10="",0,IF(GX10<=$B10,1,0)) -> 0 | GZ13: =IF(GY10="",0,IF(GZ10<=$B10,1,0)) -> 0
D14: =IF(C11="",0,IF(D11<=$B11,1,0)) -> 0 | F14: =IF(E11="",0,IF(F11<=$B11,1,0)) -> 0 | H14: =IF(G11="",0,IF(H11<=$B11,1,0)) -> 0 | J14: =IF(I11="",0,IF(J11<=$B11,1,0)) -> 0 | L14: =IF(K11="",0,IF(L11<=$B11,1,0)) -> 0 | N14: =IF(M11="",0,IF(N11<=$B11,1,0)) -> 0 | P14: =IF(O11="",0,IF(P11<=$B11,1,0)) -> 0 | R14: =IF(Q11="",0,IF(R11<=$B11,1,0)) -> 0 | T14: =IF(S11="",0,IF(T11<=$B11,1,0)) -> 0 | V14: =IF(U11="",0,IF(V11<=$B11,1,0)) -> 0 | X14: =IF(W11="",0,IF(X11<=$B11,1,0)) -> 0 | Z14: =IF(Y11="",0,IF(Z11<=$B11,1,0)) -> 0 | AB14: =IF(AA11="",0,IF(AB11<=$B11,1,0)) -> 0 | AD14: =IF(AC11="",0,IF(AD11<=$B11,1,0)) -> 0 | AF14: =IF(AE11="",0,IF(AF11<=$B11,1,0)) -> 0 | AH14: =IF(AG11="",0,IF(AH11<=$B11,1,0)) -> 0 | AJ14: =IF(AI11="",0,IF(AJ11<=$B11,1,0)) -> 0 | AL14: =IF(AK11="",0,IF(AL11<=$B11,1,0)) -> 0 | AN14: =IF(AM11="",0,IF(AN11<=$B11,1,0)) -> 0 | AP14: =IF(AO11="",0,IF(AP11<=$B11,1,0)) -> 0 | AR14: =IF(AQ11="",0,IF(AR11<=$B11,1,0)) -> 0 | AT14: =IF(AS11="",0,IF(AT11<=$B11,1,0)) -> 0 | AV14: =IF(AU11="",0,IF(AV11<=$B11,1,0)) -> 0 | AX14: =IF(AW11="",0,IF(AX11<=$B11,1,0)) -> 0 | AZ14: =IF(AY11="",0,IF(AZ11<=$B11,1,0)) -> 0 | BB14: =IF(BA11="",0,IF(BB11<=$B11,1,0)) -> 0 | BD14: =IF(BC11="",0,IF(BD11<=$B11,1,0)) -> 0 | BF14: =IF(BE11="",0,IF(BF11<=$B11,1,0)) -> 0 | BH14: =IF(BG11="",0,IF(BH11<=$B11,1,0)) -> 0 | BJ14: =IF(BI11="",0,IF(BJ11<=$B11,1,0)) -> 0 | BL14: =IF(BK11="",0,IF(BL11<=$B11,1,0)) -> 0 | BN14: =IF(BM11="",0,IF(BN11<=$B11,1,0)) -> 0 | BP14: =IF(BO11="",0,IF(BP11<=$B11,1,0)) -> 0 | BR14: =IF(BQ11="",0,IF(BR11<=$B11,1,0)) -> 0 | BT14: =IF(BS11="",0,IF(BT11<=$B11,1,0)) -> 0 | BV14: =IF(BU11="",0,IF(BV11<=$B11,1,0)) -> 0 | BX14: =IF(BW11="",0,IF(BX11<=$B11,1,0)) -> 0 | BZ14: =IF(BY11="",0,IF(BZ11<=$B11,1,0)) -> 0 | CB14: =IF(CA11="",0,IF(CB11<=$B11,1,0)) -> 0 | CD14: =IF(CC11="",0,IF(CD11<=$B11,1,0)) -> 0 | CF14: =IF(CE11="",0,IF(CF11<=$B11,1,0)) -> 0 | CH14: =IF(CG11="",0,IF(CH11<=$B11,1,0)) -> 0 | CJ14: =IF(CI11="",0,IF(CJ11<=$B11,1,0)) -> 0 | CL14: =IF(CK11="",0,IF(CL11<=$B11,1,0)) -> 0 | CN14: =IF(CM11="",0,IF(CN11<=$B11,1,0)) -> 0 | CP14: =IF(CO11="",0,IF(CP11<=$B11,1,0)) -> 0 | CR14: =IF(CQ11="",0,IF(CR11<=$B11,1,0)) -> 0 | CT14: =IF(CS11="",0,IF(CT11<=$B11,1,0)) -> 0 | CV14: =IF(CU11="",0,IF(CV11<=$B11,1,0)) -> 0 | CX14: =IF(CW11="",0,IF(CX11<=$B11,1,0)) -> 0 | CZ14: =IF(CY11="",0,IF(CZ11<=$B11,1,0)) -> 0 | DB14: =IF(DA11="",0,IF(DB11<=$B11,1,0)) -> 0 | DD14: =IF(DC11="",0,IF(DD11<=$B11,1,0)) -> 0 | DF14: =IF(DE11="",0,IF(DF11<=$B11,1,0)) -> 0 | DH14: =IF(DG11="",0,IF(DH11<=$B11,1,0)) -> 0 | DJ14: =IF(DI11="",0,IF(DJ11<=$B11,1,0)) -> 0 | DL14: =IF(DK11="",0,IF(DL11<=$B11,1,0)) -> 0 | DN14: =IF(DM11="",0,IF(DN11<=$B11,1,0)) -> 0 | DP14: =IF(DO11="",0,IF(DP11<=$B11,1,0)) -> 0 | DR14: =IF(DQ11="",0,IF(DR11<=$B11,1,0)) -> 0 | DT14: =IF(DS11="",0,IF(DT11<=$B11,1,0)) -> 0 | DV14: =IF(DU11="",0,IF(DV11<=$B11,1,0)) -> 0 | DX14: =IF(DW11="",0,IF(DX11<=$B11,1,0)) -> 0 | DZ14: =IF(DY11="",0,IF(DZ11<=$B11,1,0)) -> 0 | EB14: =IF(EA11="",0,IF(EB11<=$B11,1,0)) -> 0 | ED14: =IF(EC11="",0,IF(ED11<=$B11,1,0)) -> 0 | EF14: =IF(EE11="",0,IF(EF11<=$B11,1,0)) -> 0 | EH14: =IF(EG11="",0,IF(EH11<=$B11,1,0)) -> 0 | EJ14: =IF(EI11="",0,IF(EJ11<=$B11,1,0)) -> 0 | EL14: =IF(EK11="",0,IF(EL11<=$B11,1,0)) -> 0 | EN14: =IF(EM11="",0,IF(EN11<=$B11,1,0)) -> 0 | EP14: =IF(EO11="",0,IF(EP11<=$B11,1,0)) -> 0 | ER14: =IF(EQ11="",0,IF(ER11<=$B11,1,0)) -> 0 | ET14: =IF(ES11="",0,IF(ET11<=$B11,1,0)) -> 0 | EV14: =IF(EU11="",0,IF(EV11<=$B11,1,0)) -> 0 | EX14: =IF(EW11="",0,IF(EX11<=$B11,1,0)) -> 0 | EZ14: =IF(EY11="",0,IF(EZ11<=$B11,1,0)) -> 0 | FB14: =IF(FA11="",0,IF(FB11<=$B11,1,0)) -> 0 | FD14: =IF(FC11="",0,IF(FD11<=$B11,1,0)) -> 0 | FF14: =IF(FE11="",0,IF(FF11<=$B11,1,0)) -> 0 | FH14: =IF(FG11="",0,IF(FH11<=$B11,1,0)) -> 0 | FJ14: =IF(FI11="",0,IF(FJ11<=$B11,1,0)) -> 0 | FL14: =IF(FK11="",0,IF(FL11<=$B11,1,0)) -> 0 | FN14: =IF(FM11="",0,IF(FN11<=$B11,1,0)) -> 1 | FP14: =IF(FO11="",0,IF(FP11<=$B11,1,0)) -> 0 | FR14: =IF(FQ11="",0,IF(FR11<=$B11,1,0)) -> 0 | FT14: =IF(FS11="",0,IF(FT11<=$B11,1,0)) -> 0 | FV14: =IF(FU11="",0,IF(FV11<=$B11,1,0)) -> 0 | FX14: =IF(FW11="",0,IF(FX11<=$B11,1,0)) -> 0 | FZ14: =IF(FY11="",0,IF(FZ11<=$B11,1,0)) -> 0 | GB14: =IF(GA11="",0,IF(GB11<=$B11,1,0)) -> 0 | GD14: =IF(GC11="",0,IF(GD11<=$B11,1,0)) -> 0 | GF14: =IF(GE11="",0,IF(GF11<=$B11,1,0)) -> 0 | GH14: =IF(GG11="",0,IF(GH11<=$B11,1,0)) -> 0 | GJ14: =IF(GI11="",0,IF(GJ11<=$B11,1,0)) -> 0 | GL14: =IF(GK11="",0,IF(GL11<=$B11,1,0)) -> 0 | GN14: =IF(GM11="",0,IF(GN11<=$B11,1,0)) -> 0 | GP14: =IF(GO11="",0,IF(GP11<=$B11,1,0)) -> 0 | GR14: =IF(GQ11="",0,IF(GR11<=$B11,1,0)) -> 0 | GT14: =IF(GS11="",0,IF(GT11<=$B11,1,0)) -> 0 | GV14: =IF(GU11="",0,IF(GV11<=$B11,1,0)) -> 0 | GX14: =IF(GW11="",0,IF(GX11<=$B11,1,0)) -> 0 | GZ14: =IF(GY11="",0,IF(GZ11<=$B11,1,0)) -> 0
D15: =IF(C12="",0,IF(D12<=$B12,1,0)) -> 0 | F15: =IF(E12="",0,IF(F12<=$B12,1,0)) -> 0 | H15: =IF(G12="",0,IF(H12<=$B12,1,0)) -> 0 | J15: =IF(I12="",0,IF(J12<=$B12,1,0)) -> 0 | L15: =IF(K12="",0,IF(L12<=$B12,1,0)) -> 0 | N15: =IF(M12="",0,IF(N12<=$B12,1,0)) -> 0 | P15: =IF(O12="",0,IF(P12<=$B12,1,0)) -> 0 | R15: =IF(Q12="",0,IF(R12<=$B12,1,0)) -> 0 | T15: =IF(S12="",0,IF(T12<=$B12,1,0)) -> 1 | V15: =IF(U12="",0,IF(V12<=$B12,1,0)) -> 1 | X15: =IF(W12="",0,IF(X12<=$B12,1,0)) -> 0 | Z15: =IF(Y12="",0,IF(Z12<=$B12,1,0)) -> 0 | AB15: =IF(AA12="",0,IF(AB12<=$B12,1,0)) -> 0 | AD15: =IF(AC12="",0,IF(AD12<=$B12,1,0)) -> 1 | AF15: =IF(AE12="",0,IF(AF12<=$B12,1,0)) -> 1 | AH15: =IF(AG12="",0,IF(AH12<=$B12,1,0)) -> 1 | AJ15: =IF(AI12="",0,IF(AJ12<=$B12,1,0)) -> 1 | AL15: =IF(AK12="",0,IF(AL12<=$B12,1,0)) -> 1 | AN15: =IF(AM12="",0,IF(AN12<=$B12,1,0)) -> 0 | AP15: =IF(AO12="",0,IF(AP12<=$B12,1,0)) -> 0 | AR15: =IF(AQ12="",0,IF(AR12<=$B12,1,0)) -> 0 | AT15: =IF(AS12="",0,IF(AT12<=$B12,1,0)) -> 1 | AV15: =IF(AU12="",0,IF(AV12<=$B12,1,0)) -> 0 | AX15: =IF(AW12="",0,IF(AX12<=$B12,1,0)) -> 1 | AZ15: =IF(AY12="",0,IF(AZ12<=$B12,1,0)) -> 0 | BB15: =IF(BA12="",0,IF(BB12<=$B12,1,0)) -> 0 | BD15: =IF(BC12="",0,IF(BD12<=$B12,1,0)) -> 0 | BF15: =IF(BE12="",0,IF(BF12<=$B12,1,0)) -> 0 | BH15: =IF(BG12="",0,IF(BH12<=$B12,1,0)) -> 0 | BJ15: =IF(BI12="",0,IF(BJ12<=$B12,1,0)) -> 0 | BL15: =IF(BK12="",0,IF(BL12<=$B12,1,0)) -> 0 | BN15: =IF(BM12="",0,IF(BN12<=$B12,1,0)) -> 1 | BP15: =IF(BO12="",0,IF(BP12<=$B12,1,0)) -> 1 | BR15: =IF(BQ12="",0,IF(BR12<=$B12,1,0)) -> 0 | BT15: =IF(BS12="",0,IF(BT12<=$B12,1,0)) -> 0 | BV15: =IF(BU12="",0,IF(BV12<=$B12,1,0)) -> 0 | BX15: =IF(BW12="",0,IF(BX12<=$B12,1,0)) -> 0 | BZ15: =IF(BY12="",0,IF(BZ12<=$B12,1,0)) -> 0 | CB15: =IF(CA12="",0,IF(CB12<=$B12,1,0)) -> 0 | CD15: =IF(CC12="",0,IF(CD12<=$B12,1,0)) -> 0 | CF15: =IF(CE12="",0,IF(CF12<=$B12,1,0)) -> 0 | CH15: =IF(CG12="",0,IF(CH12<=$B12,1,0)) -> 0 | CJ15: =IF(CI12="",0,IF(CJ12<=$B12,1,0)) -> 0 | CL15: =IF(CK12="",0,IF(CL12<=$B12,1,0)) -> 0 | CN15: =IF(CM12="",0,IF(CN12<=$B12,1,0)) -> 0 | CP15: =IF(CO12="",0,IF(CP12<=$B12,1,0)) -> 0 | CR15: =IF(CQ12="",0,IF(CR12<=$B12,1,0)) -> 0 | CT15: =IF(CS12="",0,IF(CT12<=$B12,1,0)) -> 0 | CV15: =IF(CU12="",0,IF(CV12<=$B12,1,0)) -> 0 | CX15: =IF(CW12="",0,IF(CX12<=$B12,1,0)) -> 0 | CZ15: =IF(CY12="",0,IF(CZ12<=$B12,1,0)) -> 0 | DB15: =IF(DA12="",0,IF(DB12<=$B12,1,0)) -> 0 | DD15: =IF(DC12="",0,IF(DD12<=$B12,1,0)) -> 0 | DF15: =IF(DE12="",0,IF(DF12<=$B12,1,0)) -> 0 | DH15: =IF(DG12="",0,IF(DH12<=$B12,1,0)) -> 1 | DJ15: =IF(DI12="",0,IF(DJ12<=$B12,1,0)) -> 0 | DL15: =IF(DK12="",0,IF(DL12<=$B12,1,0)) -> 0 | DN15: =IF(DM12="",0,IF(DN12<=$B12,1,0)) -> 0 | DP15: =IF(DO12="",0,IF(DP12<=$B12,1,0)) -> 0 | DR15: =IF(DQ12="",0,IF(DR12<=$B12,1,0)) -> 1 | DT15: =IF(DS12="",0,IF(DT12<=$B12,1,0)) -> 1 | DV15: =IF(DU12="",0,IF(DV12<=$B12,1,0)) -> 1 | DX15: =IF(DW12="",0,IF(DX12<=$B12,1,0)) -> 0 | DZ15: =IF(DY12="",0,IF(DZ12<=$B12,1,0)) -> 0 | EB15: =IF(EA12="",0,IF(EB12<=$B12,1,0)) -> 1 | ED15: =IF(EC12="",0,IF(ED12<=$B12,1,0)) -> 1 | EF15: =IF(EE12="",0,IF(EF12<=$B12,1,0)) -> 1 | EH15: =IF(EG12="",0,IF(EH12<=$B12,1,0)) -> 1 | EJ15: =IF(EI12="",0,IF(EJ12<=$B12,1,0)) -> 1 | EL15: =IF(EK12="",0,IF(EL12<=$B12,1,0)) -> 0 | EN15: =IF(EM12="",0,IF(EN12<=$B12,1,0)) -> 0 | EP15: =IF(EO12="",0,IF(EP12<=$B12,1,0)) -> 0 | ER15: =IF(EQ12="",0,IF(ER12<=$B12,1,0)) -> 0 | ET15: =IF(ES12="",0,IF(ET12<=$B12,1,0)) -> 0 | EV15: =IF(EU12="",0,IF(EV12<=$B12,1,0)) -> 0 | EX15: =IF(EW12="",0,IF(EX12<=$B12,1,0)) -> 0 | EZ15: =IF(EY12="",0,IF(EZ12<=$B12,1,0)) -> 1 | FB15: =IF(FA12="",0,IF(FB12<=$B12,1,0)) -> 1 | FD15: =IF(FC12="",0,IF(FD12<=$B12,1,0)) -> 0 | FF15: =IF(FE12="",0,IF(FF12<=$B12,1,0)) -> 0 | FH15: =IF(FG12="",0,IF(FH12<=$B12,1,0)) -> 0 | FJ15: =IF(FI12="",0,IF(FJ12<=$B12,1,0)) -> 1 | FL15: =IF(FK12="",0,IF(FL12<=$B12,1,0)) -> 1 | FN15: =IF(FM12="",0,IF(FN12<=$B12,1,0)) -> 0 | FP15: =IF(FO12="",0,IF(FP12<=$B12,1,0)) -> 0 | FR15: =IF(FQ12="",0,IF(FR12<=$B12,1,0)) -> 0 | FT15: =IF(FS12="",0,IF(FT12<=$B12,1,0)) -> 0 | FV15: =IF(FU12="",0,IF(FV12<=$B12,1,0)) -> 0 | FX15: =IF(FW12="",0,IF(FX12<=$B12,1,0)) -> 0 | FZ15: =IF(FY12="",0,IF(FZ12<=$B12,1,0)) -> 1 | GB15: =IF(GA12="",0,IF(GB12<=$B12,1,0)) -> 0 | GD15: =IF(GC12="",0,IF(GD12<=$B12,1,0)) -> 0 | GF15: =IF(GE12="",0,IF(GF12<=$B12,1,0)) -> 0 | GH15: =IF(GG12="",0,IF(GH12<=$B12,1,0)) -> 0 | GJ15: =IF(GI12="",0,IF(GJ12<=$B12,1,0)) -> 0 | GL15: =IF(GK12="",0,IF(GL12<=$B12,1,0)) -> 0 | GN15: =IF(GM12="",0,IF(GN12<=$B12,1,0)) -> 0 | GP15: =IF(GO12="",0,IF(GP12<=$B12,1,0)) -> 0 | GR15: =IF(GQ12="",0,IF(GR12<=$B12,1,0)) -> 0 | GT15: =IF(GS12="",0,IF(GT12<=$B12,1,0)) -> 0 | GV15: =IF(GU12="",0,IF(GV12<=$B12,1,0)) -> 0 | GX15: =IF(GW12="",0,IF(GX12<=$B12,1,0)) -> 1 | GZ15: =IF(GY12="",0,IF(GZ12<=$B12,1,0)) -> 0
D16: =SUM(D13:D15) -> 0 | F16: =SUM(F13:F15) -> 0 | H16: =SUM(H13:H15) -> 0 | J16: =SUM(J13:J15) -> 0 | L16: =SUM(L13:L15) -> 0 | N16: =SUM(N13:N15) -> 0 | P16: =SUM(P13:P15) -> 0 | R16: =SUM(R13:R15) -> 0 | T16: =SUM(T13:T15) -> 1 | V16: =SUM(V13:V15) -> 1 | X16: =SUM(X13:X15) -> 0 | Z16: =SUM(Z13:Z15) -> 0 | AB16: =SUM(AB13:AB15) -> 0 | AD16: =SUM(AD13:AD15) -> 1 | AF16: =SUM(AF13:AF15) -> 1 | AH16: =SUM(AH13:AH15) -> 1 | AJ16: =SUM(AJ13:AJ15) -> 1 | AL16: =SUM(AL13:AL15) -> 1 | AN16: =SUM(AN13:AN15) -> 0 | AP16: =SUM(AP13:AP15) -> 0 | AR16: =SUM(AR13:AR15) -> 0 | AT16: =SUM(AT13:AT15) -> 1 | AV16: =SUM(AV13:AV15) -> 0 | AX16: =SUM(AX13:AX15) -> 1 | AZ16: =SUM(AZ13:AZ15) -> 0 | BB16: =SUM(BB13:BB15) -> 0 | BD16: =SUM(BD13:BD15) -> 0 | BF16: =SUM(BF13:BF15) -> 0 | BH16: =SUM(BH13:BH15) -> 0 | BJ16: =SUM(BJ13:BJ15) -> 0 | BL16: =SUM(BL13:BL15) -> 0 | BN16: =SUM(BN13:BN15) -> 1 | BP16: =SUM(BP13:BP15) -> 1 | BR16: =SUM(BR13:BR15) -> 0 | BT16: =SUM(BT13:BT15) -> 0 | BV16: =SUM(BV13:BV15) -> 0 | BX16: =SUM(BX13:BX15) -> 0 | BZ16: =SUM(BZ13:BZ15) -> 0 | CB16: =SUM(CB13:CB15) -> 0 | CD16: =SUM(CD13:CD15) -> 0 | CF16: =SUM(CF13:CF15) -> 0 | CH16: =SUM(CH13:CH15) -> 0 | CJ16: =SUM(CJ13:CJ15) -> 0 | CL16: =SUM(CL13:CL15) -> 0 | CN16: =SUM(CN13:CN15) -> 0 | CP16: =SUM(CP13:CP15) -> 0 | CR16: =SUM(CR13:CR15) -> 0 | CT16: =SUM(CT13:CT15) -> 0 | CV16: =SUM(CV13:CV15) -> 0 | CX16: =SUM(CX13:CX15) -> 0 | CZ16: =SUM(CZ13:CZ15) -> 0 | DB16: =SUM(DB13:DB15) -> 0 | DD16: =SUM(DD13:DD15) -> 0 | DF16: =SUM(DF13:DF15) -> 0 | DH16: =SUM(DH13:DH15) -> 1 | DJ16: =SUM(DJ13:DJ15) -> 0 | DL16: =SUM(DL13:DL15) -> 0 | DN16: =SUM(DN13:DN15) -> 0 | DP16: =SUM(DP13:DP15) -> 0 | DR16: =SUM(DR13:DR15) -> 1 | DT16: =SUM(DT13:DT15) -> 1 | DV16: =SUM(DV13:DV15) -> 1 | DX16: =SUM(DX13:DX15) -> 0 | DZ16: =SUM(DZ13:DZ15) -> 0 | EB16: =SUM(EB13:EB15) -> 1 | ED16: =SUM(ED13:ED15) -> 1 | EF16: =SUM(EF13:EF15) -> 1 | EH16: =SUM(EH13:EH15) -> 1 | EJ16: =SUM(EJ13:EJ15) -> 1 | EL16: =SUM(EL13:EL15) -> 0 | EN16: =SUM(EN13:EN15) -> 0 | EP16: =SUM(EP13:EP15) -> 0 | ER16: =SUM(ER13:ER15) -> 0 | ET16: =SUM(ET13:ET15) -> 0 | EV16: =SUM(EV13:EV15) -> 0 | EX16: =SUM(EX13:EX15) -> 0 | EZ16: =SUM(EZ13:EZ15) -> 1 | FB16: =SUM(FB13:FB15) -> 1 | FD16: =SUM(FD13:FD15) -> 0 | FF16: =SUM(FF13:FF15) -> 0 | FH16: =SUM(FH13:FH15) -> 0 | FJ16: =SUM(FJ13:FJ15) -> 1 | FL16: =SUM(FL13:FL15) -> 1 | FN16: =SUM(FN13:FN15) -> 1 | FP16: =SUM(FP13:FP15) -> 0 | FR16: =SUM(FR13:FR15) -> 0 | FT16: =SUM(FT13:FT15) -> 0 | FV16: =SUM(FV13:FV15) -> 0 | FX16: =SUM(FX13:FX15) -> 0 | FZ16: =SUM(FZ13:FZ15) -> 1 | GB16: =SUM(GB13:GB15) -> 0 | GD16: =SUM(GD13:GD15) -> 0 | GF16: =SUM(GF13:GF15) -> 0 | GH16: =SUM(GH13:GH15) -> 0 | GJ16: =SUM(GJ13:GJ15) -> 0 | GL16: =SUM(GL13:GL15) -> 0 | GN16: =SUM(GN13:GN15) -> 0 | GP16: =SUM(GP13:GP15) -> 0 | GR16: =SUM(GR13:GR15) -> 0 | GT16: =SUM(GT13:GT15) -> 0 | GV16: =SUM(GV13:GV15) -> 0 | GX16: =SUM(GX13:GX15) -> 1 | GZ16: =SUM(GZ13:GZ15) -> 0

Sheet Services Délégués
A1: Retour à l'accueil
A2: EAU | G2: ASSAINISSEMENT | S2: SERVICES MARCHANDS | AA2: PANNEAUX PUBLICITAIRES | AC2: TOTAL
A3: AEV | C3: FPM | E3: PEA | G3: Entretien des voies urbaines | I3: Eclairage public | K3: Collecte et traitement des déchets | M3: Evacuation des eaux usées | O3: Gestion des cimétieres | Q3: Gestion des espaces verts | S3: Gestion des marchés | U3: Gestion des abattoirs | W3: Promotion du tourisme | Y3: Gestions des gares routieres
A4: PREVUES | B4: DELEGUEES | C4: PREVUES | D4: DELEGUEES | E4: PREVUES | F4: DELEGUEES | G4: PREVUS | H4: DELEGUES | I4: PREVUS | J4: DELEGUES | K4: PREVUS | L4: DELEGUES | M4: PREVUS | N4: DELEGUES | O4: PREVUS | P4: DELEGUES | Q4: PREVUS | R4: DELEGUES | S4: PREVUS | T4: DELEGUES | U4: PREVUS | V4: DELEGUES | W4: PREVUS | X4: DELEGUES | Y4: PREVUS | Z4: DELEGUES | AA4: PREVUS | AB4: DELEGUES | AC4: PREVUS | AD4: DELEGUES
G5: 19 | H5: 19 | I5: 0 | J5: 0 | K5: 8 | L5: 8 | O5: 3 | P5: 3 | Q5: 3 | R5: 3 | S5: 0 | T5: 0 | Y5: 0 | Z5: 0 | AA5: 27 | AB5: 27 | AC5: =SUM(A5,C5,E5,G5,I5,K5,M5,O5,Q5,S5,U5,W5,Y5,AA5) -> 60 | AD5: =SUM(B5,D5,F5,H5,J5,L5,N5,P5,R5,T5,V5,X5,Z5,AB5) -> 60

Sheet Autres données
A1: Retour à l'accueil
A2: Données à collecter | D2: Valeurs
A3: Fonctionalité des services de la mairie | C3: Nombre de services prévus. | D3: 45
C4: Nombre de services fonctionnels | D4: 45
A5: Manuel de procédure | C5: Existence du manuel de procédure | D5: OUI
C6: Manuel de procédure actualisé. | D6: NON
A7: Evaluation du personnel | C7: Nombre de personnes évalué | D7: 1103
C8: Effectif du personnel | D8: 1112
A9: Adequation profil/poste | C9: Nombre de postes occupés dans la commune | D9: 164
C10: Nombre d'agents dont le profil correspond au poste occupé | D10: 164
A11: Données Foncieres | B11: Commission de Gestion foncière (COGEF) | C11: Existence de la COGEF | D11: OUI
C12: Nombre d'Attestation de Détention Coutumiere (ADC) demandé
C13: Nombre d'Attestation de Détention Coutumiere (ADC) traité
B14: Nombre de contentieux fonciers impliquant la commune | D14: 114
A15: Système d'information | C15: Existence d’un système de classement et d’archivage | D15: OUI
C16: Existence d’une personne en charge du classement des archivages | D16: OUI
C17: Existence d’un local dédié à l’archivage | D17: OUI
C18: Existence de documents archivés. | D18: OUI
A19: Nombre de délégations | C19: Nombre de délégations de signature pris. | D19: 3
A20: Attributions de pouvoir | C20: Nombre d'attributions de pouvoir pris. | D20: 8
A21: Séances de reddition de comptes | C21: Nombre de séances tenues | D21: 2
C22: Nombre de séances prévues. | D22: 2
A23: Activités spécifiques en faveur des femmes | C23: Nombre d’activités spécifiques réalisées en faveur des femmes | D23: 2
C24: Nombre d’activités réalisées dans le PTA | D24: 12
A25: Informations sur les prestations de la commune | C25: Existence d’un lieu publique dédié à l'informations sur les prestations de la commune | D25: OUI
C26: Existence d'une personne en charge de l'information | D26: OUI
A27: SDAC en cours de validité | C27: Existence ou non d'un SDAC | D27: NON
A28: PDC en cours de validité | C28: Existence ou non d’un PDC | D28: OUI
A29: Suivi évaluation des PTA/PAI/PAD | C29: Nombre de séances de suivi évaluation des PTA | D29: 3
C30: Nombre de séances de suivi évaluation des PAI | D30: 3
C31: Nombre de séances de suivi évaluation des PAD
A32: Infrastructures économiques et marchandes | C32: Nombre réalisées en année 2019 | D32: 0
C33: Nombre réalisées en année 2018 | D33: 0
A34: TBS | C34: Existence d’un TBS actualisé | D34: OUI
C35: Date d’actualisation | D35: 2017-10-25
A36: Coopération décentralisée | C36: Nombre d’accord actif | D36: 7
C37: Nombre d’activités réalisées provenants de ces accords | D37: 4

Sheet Récapitulatif (hidden)
A1: Données à traiter | C1: Valeurs
A2: Nombre de sessions ordinaires tenues | C2: =COUNTA(CC!C6:C9) -> 4
A3: Nombre de services prévus. | C3: ='Autres données'!D3 -> 45
A4: Nombre de services existant doté en personnel. | C4: ='Autres données'!D4 -> 45
A5: Nombre d’élus du conseil communal | C5: =CC!D4 -> 49
A6: Nombre de conseillers présents à chaque conseil communal | C6: =SUMIF(CC!C6:C9,"<>",CC!B6:B9) -> 169
A7: Existence du manuel de procédure actualisé. | C7: =IF(OR('Autres données'!D5="NON",'Autres données'!D5=""),0,IF('Autres données'!D6="OUI",1,0.5)) -> 0.5
A8: Nombre de fiches d’évaluation du personnel évalué dans l’année. | C8: ='Autres données'!D7 -> 1103
A9: Nombre de personnes à évaluer. | C9: ='Autres données'!D8 -> 1112
A10: Nombre de commissions permanentes existantes. | C10: =CP!C15 -> 8
A11: Nombre de sessions des commissions permamentes | C11: =SUM(CP!D15,CP!G15,CP!J15,CP!M15,CP!P15,CP!V15,CP!Y15,CP!AB15,CP!AE15,CP!AH15,CP!AK15) -> 8
A12: Nombre présents commission permanente | C12: =SUM(CP!D16,CP!G16,CP!J16,CP!M16,CP!P16,CP!V16,CP!Y16,CP!AB16,CP!AE16,CP!AH16,CP!AK16) -> 35
A13: Nombre de propositions formulées par les commissions permanentes | C13: =SUM(CP!E16,CP!H16,CP!K16,CP!N16,CP!Q16,CP!T16,CP!W16,CP!Z16,CP!AC16,CP!AF16,CP!AI16,CP!AL16) -> 16
A14: Nombre de propositions formulées par les commissions permanentes réalisées. | C14: =SUM(CP!F16,CP!I16,CP!L16,CP!O16,CP!R16,CP!U16,CP!X16,CP!AA16,CP!AD16,CP!AG16,CP!AJ16,CP!AM16) -> 16
A15: Nombre de postes occupés | C15: ='Autres données'!D9 -> 164
A16: Nombre de postes occupés correspondant au profil recherché | C16: ='Autres données'!D10 -> 164
A17: Existence ou non d’un système de documentation et d’archivage | C17: =IF('Autres données'!D15="OUI",1,0) -> 1
A18: Existence ou non d’une personne en charge de la documentation et d’archivage | C18: =IF('Autres données'!D16="OUI",1,0) -> 1
A19: Existence ou non d’un local dédié à la documentation et d’archivage | C19: =IF('Autres données'!D17="OUI",1,0) -> 1
A20: Existence ou non de document archivés. | C20: =IF('Autres données'!D18="OUI",1,0) -> 1
A21: Nombre de services publics susceptibles d’être délégués | C21: ='Services Délégués'!AC5 -> 60
A22: Nombre de services publics délégués dans l’année | C22: ='Services Délégués'!AD5 -> 60
A23: Nombre total de rapports produits dans l’année | C23: =COUNTIF(CC!F6:F9,"=OUI") -> 4
A24: Nombre total de rapports à produire dans l’année. | C24: =C2 -> 4 | D24: nombre de session dans l'année =4
A25: Nombre de réunions de la municipalité | C25: =CC!D3 -> 7
A26: Nombre de réunions prévues | C26: 12 | D26: limité à 12
A27: Nombre total de sessions de conseils d’arrondissement tenues au cours de l’année | C27: =SUM(CA!B3:B50) -> 158 | D27: somme dans CA
A28: Nombre d’arrondissements | C28: 13
A29: Nombre total de réunions de conseils de village tenues au cours de l’année | C29: =SUM(CV!C5:C100) -> 366 | D29: somme d&ns CV
A30: Nombre de villages | C30: 166
A31: Nombre de documents ou d’arrêtés portant délégation de signature pris. | C31: ='Autres données'!D19 -> 3
A32: Nombre de document ou arrêtés portant délégation de pouvoir pris. | C32: ='Autres données'!D20 -> 8
A33: Montant du budget prévisionnel | C33: =Budget!A5 -> 25919045527
A34: Montant du Budget Consommé | C34: =E37+C39 -> 14027455607
A35: Recette fiscales previsionnelles | C35: =Budget!B5 -> 10868400000
A36: Dépenses d'investissement | B36: Ressources propres | C36: =Budget!D5 -> 3454094982
B37: Investissement provenant de la coopération décentralisée | C37: =Budget!E5 -> 0 | E37: =SUM(C36:C38) -> 3998773480
B38: Autres ressources | C38: =Budget!F5 -> 544678498
A39: Dépenses totales de fonctionnement | C39: =Budget!G5 -> 10028682127
A40: Dépenses d'entretien des équipements et ouvrages | C40: =Budget!H5 -> 322069313
A41: Montant des ressources propres de l'année n-1 | C41: =Budget!K5 -> 13526674006
A42: Montant des ressources propres de l'année n | C42: =Budget!L5 -> 12498174371
A43: Recettes fiscales recouvrées | C43: =Budget!I5 -> 11275080002
A44: Montant des cotisations versées à échéance | C44: =Budget!M5 -> 20345699
A45: Montant des cotisations dues à échéance | C45: =Budget!N5 -> 32000000
A46: Nombre de marchés conclus dans l’année | C46: =Marchés!E5 -> 103
A47: =Marchés!A3 -> Plan de passation des marchés publics publiés | C47: =IF(Marchés!E3="OUI",1,0) -> 1
A48: =Marchés!A4:D4 -> Nombre de marchés publics passés hors plan de passation des marchés | C48: =Marchés!E4 -> 0 | D48: =IF(Marchés!E4="",0,IF(Marchés!E4=0,1,0)) -> 1
A49: Nombre de marchés conclus dans l’année et ayant respecté les procédures. | C49: =Marchés!E6 -> 103
A50: Délai moyen de passation des marchés publics communaux | C50: =IF(C46=0,0,D50/C46) -> 0.2621359223 | D50: =SUM(Marchés!$D$16:$QG$16) -> 27
A51: Nombre de fois où les relevés des délibérations affichés | C51: =COUNTA(CC!E6:E9) -> 4
A52: Délai d’affichage | C52: =SUM(CC!I6:I9)/C2 -> 1 | D52: 8 jours maxi aprs la fin de la session
A53: Nombre de séances de reddition de comptes | C53: ='Autres données'!D21 -> 2
A54: Nombre de séances de reddition de comptes prévus. | C54: ='Autres données'!D22 -> 2
A55: Nombre d’actions spécifiques réalisées en faveur des femmes | C55: ='Autres données'!D23 -> 2
A56: Nombre d’actions spécifiques réalisées dans le PTA | C56: ='Autres données'!D24 -> 12
A57: ='Autres données'!C25 -> Existence d’un lieu publique dédié à l'informations sur les prestations de la commune | C57: =IF('Autres données'!D25="OUI",1,0) -> 1
A58: ='Autres données'!C26 -> Existence d'une personne en charge de l'information | C58: =IF('Autres données'!D26="OUI",1,0) -> 1
A59: Nombre de cadres de concertation. | C59: =COUNTA('Cadres de Concertation'!F6:L6) -> 6 | D59: =IF(C59<=0,0,IF(C59>3,1,C59/4)) -> 1
A60: Nombre moyen de réunions du cadre de concertation tenu | C60: =SUM('Cadres de Concertation'!F6:L6)/C59 -> 1.833333333 | D60: =IF(C60<=0.5,0,IF(C60<1.5,0.25,IF(C60<2.5,0.5,IF(C60<4,0.75,1)))) -> 0.5
A61: Existence ou non d’un SDAC. | C61: =IF('Autres données'!D27="OUI",1,0) -> 0
A62: Existence ou non d’un PDC | C62: =IF('Autres données'!D28="OUI",1,0) -> 1
A63: Montant PAI prévision | C63: =Budget!C5 -> 10549668054
A64: Montant PAI réalisé | C64: =Budget!J5 -> 5321560706
A65: Nombre de séances de suivi évaluation des PTA/PAI/PAD | C65: =SUM('Autres données'!D29:D31) -> 6
A66: Nombre d’infrastructures économiques et marchandes réalisées en année n | C66: ='Autres données'!D32 -> 0
A67: Nombre d’infrastructures économiques et marchandes réalisées en année n-1 | C67: ='Autres données'!D33 -> 0
A68: Nombre d'EPC demandé (village) | C68: =SUM(CV!D5:D191) -> 0 | F68: somme
A69: Nombre d'EPC réalisé (Village) | C69: =SUM(CV!E5:E191) -> 0
A70: Nombre de ADC demandé (Commune-Autre données) | C70: ='Autres données'!D12 -> 
A71: Nombre de ADC réalisé (Commune-Autre données) | C71: ='Autres données'!D13 -> 
A72: Existence ou inexistence d’un tableau de bord social actualisé | C72: =IF('Autres données'!D34="OUI",1,0) -> 1
A73: Date d’actualisation du tableau de bord social | C73: ='Autres données'!D35 -> 2017-10-25
A74: Existence d'un tableau de bord | C74: ='Autres données'!D34 -> OUI
A75: Nombre d’ accord de coopération décentralisée. | C75: =IF('Autres données'!D36<1,0,IF('Autres données'!D36=1,0.5,1)) -> 1
A76: Nombre d’activités des accords de coopération décentralisées réalisées. | C76: =IF('Autres données'!D37<1,0,IF('Autres données'!D37<3,0.5,1)) -> 1
A77: Nombre de conflits fonciers impliquant la commune | C77: =IF('Autres données'!D14="","",'Autres données'!D14) -> 114 | D77: =IF(C77="",0,IF(C77=0,1,IF(C77<=3,0.75,IF(C77<=8,0.5,IF(C77<=15,0.25,0))))) -> 0
A78: Nombre de participation du maire ou de son représentant au CDCC au cours de l’année | C78: =COUNTIF(Tutelle!B5:B6,">0") -> 2 | D78: feuille tutelle (compter le nombre de lignes 5 ou 6 rempli
A79: Nombre de CDCC tenus dans l’année. | C79: =COUNTA(Tutelle!C5:C6) -> 2 | D79: fixer à 2
A80: Nombre total de présence du maire ou de ses adjoints au CDCC | C80: =SUMIF(Tutelle!C5:C6,"<>",Tutelle!B5:B6) -> 32
A81: Nombre total attendu (Maire et ses adjoints) pour toutes les sessions | C81: =C79*Tutelle!C3 -> 32
A82: Nombre d’actes communaux conformes en une année | C82: =Tutelle!D8 -> 210
A83: Nombre d’actes communaux soumis à la tutelle en un an | C83: =Tutelle!D9 -> 210
A84: Le budget est transmis ou pas. | C84: =IF(Tutelle!H2="TRANSMIS",1,0) -> 1
A85: Délai de transmission du budget après adoption par le conseil communal | C85: =IF(Budget!Q5="",0,IF(Budget!Q5<=DATE(Acceuil!P12,3,31),1,0)) -> 0
A86: Délai d'approbation du budget par la tutelle | C86: =IF(OR(Tutelle!H4="",Tutelle!H5=""),0,IF(Tutelle!H5<=EDATE(Tutelle!H4,1),1,0)) -> 1 | D86: si<1mois, 1, 0 sinon
A87: Le compte administratif est transmis ou pas. | C87: =IF(Tutelle!H6="TRANSMIS",1,0) -> 1
A88: Délai de transmission du compte administratif après adoption par le conseil communal | C88: =IF(Tutelle!H7="",0,IF(Tutelle!H7<=DATE(Acceuil!P12+1,6,30),1,0)) -> 1
A89: Délai d'approbation du compte administratif par la tutelle | C89: =IF(OR(Tutelle!H8="",Tutelle!H9=""),0,IF(Tutelle!H9<=EDATE(Tutelle!H8,1),1,0)) -> 1
A90: Nombre de réunions du cadre de concertation prévu (Mairie + SDE) | C90: ='Cadres de Concertation'!C5 -> 2
A91: Nombre de réunions du cadre de concertation tenu (Mairie + SDE) | C91: =COUNTA('Cadres de Concertation'!C7:C18) -> 2 | E91: =C91/C90 -> 1 | F91: =C92/C93 -> 1
A92: Nombre total des membres présents (Mairie + SDE) | C92: =SUMIF('Cadres de Concertation'!C7:C18,"<>",'Cadres de Concertation'!B7:B18) -> 44
A93: Nombre total des membres attendus (Mairie + SDE) | C93: ='Cadres de Concertation'!C4*Récapitulatif!C91 -> 44

Sheet Indicateurs (hidden)
A1: D1 | B1: 1 | C1: Taux de realisation des sessions ordinaires du conseil communal | D1: =Récapitulatif!C2/4 -> 1
B2: 2 | C2: Taux de services fonctionnels | D2: =Récapitulatif!C4/Récapitulatif!C3 -> 1
B3: 3 | C3: Taux de participation des élus aux conseils communaux | D3: =Récapitulatif!C6/(Récapitulatif!C5*Récapitulatif!C2) -> 0.862244898
B4: 4 | C4: Existance d'un manuel de procedure à jour | D4: =Récapitulatif!C7 -> 0.5
B5: 5 | C5: Taux de personnes évaluées | D5: =Récapitulatif!C8/Récapitulatif!C9 -> 0.9919064748
B6: 6 | C6: Taux de commissions permanentes fonctionnelles | D6: =((Récapitulatif!C11/Récapitulatif!C10)+(Récapitulatif!C12/CP!AP15)+(Récapitulatif!C14/Récapitulatif!C13))/3 -> 0.9202898551
B7: 7 | C7: Taux d'adéquation profil/poste | D7: =Récapitulatif!C16/Récapitulatif!C15 -> 1
B8: 8 | C8: Fonctionalité du système de classement et d'archivage | D8: =SUM(Récapitulatif!C17:C20)/4 -> 1
B9: 9 | C9: Taux de services publics locaux en gestion déléguée | D9: =Récapitulatif!C22/Récapitulatif!C21 -> 1
B10: 10 | C10: Taux de realisation des rapports d'activités du maire | D10: =Récapitulatif!C23/Récapitulatif!C24 -> 1
B11: 11 | C11: Taux de tenu des reunions de municipalité | D11: =Récapitulatif!C25/Récapitulatif!C26 -> 0.5833333333
B12: 12 | C12: Taux moyen de tenue des sessions du conseil d'arrondissement | D12: =Récapitulatif!C27/Récapitulatif!C28 -> 12.15384615
B13: 13 | C13: Taux moyen de tenue des sessions du conseil de villages | D13: =Récapitulatif!C29/Récapitulatif!C30 -> 2.204819277
B14: 14 | C14: Nombre de délégation de signature du maire aux adjoints | D14: =Récapitulatif!C31 -> 3
B15: 15 | C15: Nombre de délégation de pouvoir éffectué par le maire | D15: =Récapitulatif!C32 -> 8
A16: D2 | B16: 1 | C16: Taux d'éxecution du budget communal | D16: =Récapitulatif!C34/Récapitulatif!C33 -> 0.54120263
B17: 2 | C17: Taux d'autofinancement des Investissements | D17: =Récapitulatif!C36/Récapitulatif!E37 -> 0.863788609
B18: 3 | C18: Part des Investissements dans les dépenses totales de la commune | D18: =Récapitulatif!E37/Récapitulatif!C34 -> 0.2850676268
B19: 4 | C19: Part des dépenses d'entretien des équipements et ouvrages dans les depenses de fonctionnement | D19: =Récapitulatif!C40/Récapitulatif!C39 -> 0.03211481917
B20: 5 | C20: Adoption du budget dans les délais | D20: =IF(Tutelle!H3="",0,IF(Tutelle!H3<DATE(Acceuil!P12,1,1),1,0)) -> 1
B21: 6 | C21: Respect du délai de vote du compte administratif | D21: =IF(Tutelle!H7="",0,IF(Tutelle!H7<=DATE(Acceuil!P12,6,30),1,0)) -> 1
B22: 7 | C22: Taux d'accroissement des ressources propres | D22: =(Récapitulatif!C42-Récapitulatif!C41)/Récapitulatif!C41 -> -0.07603492437
B23: 8 | C23: Taux de recouvrement fiscal | D23: =Récapitulatif!C43/Récapitulatif!C35 -> 1.037418571
B24: 9 | C24: délai moyen de passation des marchés publics communaux | D24: =Récapitulatif!C50/Récapitulatif!C46 -> 0.002545008955
B25: 10 | C25: Existance des plans de passation des marchés validés et publiés | D25: =(Récapitulatif!C47+Récapitulatif!D48)/2 -> 1
B26: 11 | C26: Ratio des marchés publics ayant respecté les procédures | D26: =Récapitulatif!C49/Récapitulatif!C46 -> 1
A27: D3 | B27: 1 | C27: Affichage des relevés des décisions du Conseil Communal dans les délai | D27: =((Récapitulatif!C51/Récapitulatif!C2)+Récapitulatif!C52)/2 -> 1
B28: 2 | C28: Taux de réalisation des seances de reddition de compte | D28: =Récapitulatif!C53/Récapitulatif!C54 -> 1
B29: 3 | C29: Nombre d'actions spécifiques en faveur des femmes au cours de l'année | D29: =Récapitulatif!C55/Récapitulatif!C56 -> 0.1666666667
B30: 4 | C30: Existance d'un mecanisme d'information du public par rapport aux prestations de la commune | D30: =(Récapitulatif!C57+Récapitulatif!C58)/2 -> 1
B31: 5 | C31: Nombre de cadre de concertation fonctionnel | D31: =(Récapitulatif!D59+Récapitulatif!D60)/2 -> 0.75
A32: D4 | B32: 1 | C32: Existance d'un SDAC | D32: =Récapitulatif!C61 -> 0
B33: 2 | C33: Existance d'un PDC | D33: =(Récapitulatif!C62+(Récapitulatif!C64/Récapitulatif!C63))/2 -> 0.7522146042
B34: 3 | C34: Nombre de reunions de suivi-évaluation du PTA/PAI/PAD | D34: =Récapitulatif!C65 -> 6
B35: 4 | C35: Taux d'accroissement des infrastructures économiques et marchandes | D35: =(Récapitulatif!C66-Récapitulatif!C67)/Récapitulatif!C67 -> 
B36: 5 | C36: Fonctionalité des organes de gestion fonciere aux niveaux communal et infra communal | D36: =((Récapitulatif!C69/Récapitulatif!C68)+(Récapitulatif!C71/Récapitulatif!C70))/2 -> 0
B37: 6 | C37: Existance d'un tableau de bord social actualisé | D37: =Récapitulatif!C72 -> 1
B38: 7 | C38: Nombre d'accord de cooperation decentralisée mise en œuvre | D38: =(Récapitulatif!C75+Récapitulatif!C76)/2 -> 1
B39: 8 | C39: Taux de paiement des cotisations de la commune à l'intercommunalité | D39: =IF(Récapitulatif!C45=0,0,Récapitulatif!C44/Récapitulatif!C45) -> 0.6358030937
B40: 9 | C40: Nombre de contentieux fonciers impliquant la Mairie | D40: =Récapitulatif!D77 -> 0
A41: D5 | B41: 1 | C41: Nombre de participations au CDCC | D41: =((Récapitulatif!C78/Récapitulatif!C79)+(Récapitulatif!C80/Récapitulatif!C81))/2 -> 1
B42: 2 | C42: Taux de conformité des actes communaux | D42: =IF(Récapitulatif!C83=0,0,Récapitulatif!C82/Récapitulatif!C83) -> 1
B43: 3 | C43: Transmission du budget dans les délais | D43: =SUM(Récapitulatif!C84:C86)/3 -> 0.6666666667
B44: 4 | C44: Transmission du compte administratif dans les délais | D44: =SUM(Récapitulatif!C87:C89)/3 -> 1
B45: 5 | C45: Animation d'un cadre de concertation entre le maire et les services déconcentrés communaux | D45: =(Récapitulatif!E91+Récapitulatif!F91)/2 -> 1
